Cogmind - Beta 16 @@@ ROGUE MODE // 2025.11.03 @ 02:29:22 Player: Zaros426 Result: Destroyed by Combat Programmer with EMDS Performance ------------- Evolutions (9) 4500 Regions Visited (32) 6400 Robots Destroyed (444) 2220 Value Destroyed (23920) 23920 Prototype IDs (85) 1700 Alien Tech Used (0) 0 Bonus (29397) 29397 TOTAL SCORE: 68137 Bonus ------- High Alert Combat Kills 5647 Follower Combat Kills 9615 Entered Garrisons 2400 Used RIF Installer 7000 Aligned with FarCom 300 Met MAIN.C 5000 Friendly Fire -565 Cogmind --------- Core Integrity 0/1600 Matter 229/300 Energy 21/100 System Corruption 23% Temperature Cool (0) Movement Core (50) Location -1/Command Parts ------- > --- POWER (3) -------- (None) > --- PROPULSION (6) --- (None) > --- UTILITY (13) ----- Experimental Optical Array Experimental Targeting Computer Relay Coupler [NC] (61) Relay Coupler [Brawler] (41) Relay Coupler [Sentry] (30) Relay Coupler [Hunter] (14) Relay Coupler [Proto] (9) Improved Dynamic Insulation System > --- WEAPON (3) ------- (None) > --- INVENTORY (5) ---- Advanced Remote Force Field Enhanced Nova Cannon Micro-nuke Launcher Peak State ------------ > --- POWER ------------ Quantum Reactor Quantum Reactor Light Quantum Reactor > --- PROPULSION ------- Advanced Heavy Siege Treads Advanced Heavy Siege Treads Advanced Heavy Siege Treads > --- UTILITY ---------- Huge Storage Unit Experimental Optical Array Experimental Targeting Computer Heavy Armor Plating Advanced Remote Force Field Relay Coupler [Swarmer] Relay Coupler [Grunt] Relay Coupler [Brawler] Relay Coupler [Sentry] Relay Coupler [Hunter] Relay Coupler [Proto] Improved Dynamic Insulation System > --- WEAPON ----------- Enhanced Hardcell Cannon Enhanced Hardcell Cannon Advanced Remote Datajack > --- INVENTORY -------- Advanced Heavy Siege Treads Advanced Heavy Siege Treads Advanced Cooling System Matter Compressor Advanced Force Field Advanced Remote Force Field Relay Coupler [NC] Relay Coupler [NC] Relay Coupler [Grunt] Relay Coupler [Specialist] Relay Coupler [Heavy] Relay Coupler [Proto] Relay Coupler [Proto] Relay Coupler [Proto] Relay Coupler [Proto] Gamma Rifle Enhanced Nova Cannon Enhanced Hardcell Cannon Micro-nuke Launcher Advanced Remote Datajack Improved Plasma Cutter [Rating: 185] Favorites ----------- Power Quantum Reactor Engine Deuterium Engine Power Core Reinforced Fission Core Reactor Quantum Reactor Propulsion Light Treads Treads Light Treads Leg Potential Leg Hover Unit Aerolev Unit Flight Unit Improved Flight Unit Utility Huge Storage Unit Device Advanced Remote Force Field Storage Huge Storage Unit Processor Experimental Optical Array Hackware System Shield Protection Improved Medium Armor Plating Weapon Enhanced Hardcell Cannon Energy Gun Shock Rifle Energy Cannon Enhanced Nova Cannon Ballistic Gun Autogun Ballistic Cannon Enhanced Hardcell Cannon Launcher Rocket Launcher Special Weapon Advanced Remote Datajack Impact Weapon Impact Mace Slashing Weapon Scythe Special Melee Weapon Datajack Build | -11 -10 -10 -9 -9 -9 -8 -8 -8 -8 -8 -7 -7 -6 -6 -6 -6 -5 -5 -4 -4 -4 -4 -3 -3 -3 -3 -2 -2 -1 -1 -1 -1 ------- Run | Yrd Mat Min Mat Min Exi Min Mat Gar Mat Gar Fac Gar Fac Gar Fac Gar Fac Gar Fac Gar Fac Gar Res Gar Res Gar Res Gar Acc Gar Acc Com Slots Evolved 18 | . . . 2 . . . 2 . . . 2 . 2 . . . 2 . 2 . . . 2 . . . 2 . 2 . . . Power 2 | . . . . . . . . . . . . . . . . . . . 1 . . . . . . . 1 . . . . . Propulsion 4 | . . . 1 . . . . . . . 1 . . . . . 2 . . . . . . . . . . . . . . . Utility 11 | . . . . . . . 2 . . . 1 . 2 . . . . . 1 . . . 2 . . . 1 . 2 . . . Weapon 1 | . . . 1 . . . . . . . . . . . . . . . . . . . . . . . . . . . . . Parts Attached 312 | 8 10 6 16 1 1 . 8 3 15 6 5 8 5 14 12 20 12 33 8 12 5 20 . 29 1 13 2 12 . 16 5 6 Power 29 | 1 . . 3 . . . . . 3 1 . 1 1 1 . . . 4 1 2 . 2 . 3 . 2 1 2 . . 1 . Engine 7 | 1 . . 3 . . . . . 2 1 . . . . . . . . . . . . . . . . . . . . . . Core 5 | . . . . . . . . . 1 . . . . . . . . 2 1 . . . . 1 . . . . . . . . Reactor 17 | . . . . . . . . . . . . 1 1 1 . . . 2 . 2 . 2 . 2 . 2 1 2 . . 1 . Propulsion 57 | 2 2 2 6 . . . 3 . 6 1 3 . 1 2 2 4 2 10 . 1 . 3 . 4 . 1 . . . . . 2 Treads 42 | 2 1 2 6 . . . 2 . 6 1 3 . 1 2 2 3 2 5 . . . . . 1 . 1 . . . . . 2 Leg 12 | . . . . . . . . . . . . . . . . 1 . 5 . 1 . 3 . 2 . . . . . . . . Wheel . | . . . . . . . . . . . . . . . . . . . . . . . . . . . . . . . . . Hover 1 | . . . . . . . 1 . . . . . . . . . . . . . . . . . . . . . . . . . Flight 2 | . 1 . . . . . . . . . . . . . . . . . . . . . . 1 . . . . . . . . Utility 154 | 2 4 2 1 . . . 3 1 . 3 2 6 2 7 8 9 8 15 6 6 4 12 . 16 1 6 1 9 . 13 3 4 Device 27 | 1 1 2 . . . . . . . 1 . 1 . 2 2 2 1 3 . . 2 2 . 3 . 1 1 . . 1 . 1 Storage 8 | 1 2 . 1 . . . . . . . . . 1 1 1 . 1 . . . . . . . . . . . . . . . Processor 7 | . . . . . . . . . . . 1 . . . . . 2 . . . 2 . . . . . . 1 . . 1 . Hackware 94 | . . . . . . . 1 1 . 2 . 5 . 1 3 6 3 9 6 6 . 9 . 12 1 5 . 8 . 11 2 3 Protection 18 | . 1 . . . . . 2 . . . 1 . 1 3 2 1 1 3 . . . 1 . 1 . . . . . 1 . . Artifact . | . . . . . . . . . . . . . . . . . . . . . . . . . . . . . . . . . Weapon 72 | 3 4 2 6 1 1 . 2 2 6 1 . 1 1 4 2 7 2 4 1 3 1 3 . 6 . 4 . 1 . 3 1 . Energy Gun 8 | 1 1 2 . . . . 1 . 1 . . . . 1 . . . . . . . . . 1 . . . . . . . . Energy Cannon 3 | . . . . . . . . . . . . . . . . . 1 . . 2 . . . . . . . . . . . . Ballistic Gun 20 | 2 . . 3 . . . . 1 3 . . . . 3 . 4 1 2 . . . . . 1 . . . . . . . . Ballistic Cannon 18 | . 2 . 1 . . . . . 1 . . 1 . . . 3 . 2 . . . 1 . 2 . 3 . . . 2 . . Launcher 6 | . . . 1 1 . . 1 1 . . . . 1 . . . . . . . 1 . . . . . . . . . . . Special Weapon 14 | . 1 . . . . . . . . 1 . . . . 2 . . . 1 1 . 2 . 2 . 1 . 1 . 1 1 . Impact Weapon 1 | . . . . . . . . . 1 . . . . . . . . . . . . . . . . . . . . . . . Slashing Weapon 1 | . . . 1 . . . . . . . . . . . . . . . . . . . . . . . . . . . . . Piercing Weapon . | . . . . . . . . . . . . . . . . . . . . . . . . . . . . . . . . . Special Melee Weapon 1 | . . . . . 1 . . . . . . . . . . . . . . . . . . . . . . . . . . . Unidentified Prototypes 12 | . 1 1 . . . . 2 . 4 . . . . . 1 . . . . . 3 . . . . . . . . . . . Parts Lost 68 | . . . 1 . . . 1 1 . 2 . 2 . 6 4 9 2 5 . 1 . 2 . 8 . 1 1 . . 3 . 19 Power 7 | . . . . . . . . . . . . . . . . . . 2 . . . . . 1 . . 1 . . . . 3 Propulsion 19 | . . . . . . . . . . . . . . 1 3 3 1 3 . . . 1 . 1 . 1 . . . . . 5 Utility 26 | . . . . . . . 1 . . 1 . 1 . 1 1 4 1 . . 1 . 1 . 4 . . . . . 3 . 7 Weapon 16 | . . . 1 . . . . 1 . 1 . 1 . 4 . 2 . . . . . . . 2 . . . . . . . 4 Highest Loss Streak 17 | . . . 1 . . . 1 1 . 1 . 2 . 4 4 3 1 2 . 1 . 1 . 6 . 1 1 . . 1 . 17 To Critical Strikes . | . . . . . . . . . . . . . . . . . . . . . . . . . . . . . . . . . Average Backups 22 | 1 12 20 23 24 24 25 24 23 24 23 23 22 22 22 23 23 25 24 21 20 21 21 21 21 22 22 23 22 23 22 23 19 Power . | . . . . 1 1 1 1 1 . . . . . . 1 . . . . . . . . . 1 . . . . . . . Propulsion 4 | . 3 5 6 6 7 8 8 10 8 6 4 4 3 3 3 2 2 2 3 4 5 3 3 3 3 1 2 2 2 2 2 1 Utility 11 | . 3 6 8 10 10 10 8 8 8 8 10 10 10 10 13 14 16 15 13 10 10 12 13 12 11 14 15 14 15 14 15 12 Weapon 4 | 1 5 7 6 6 6 5 5 3 6 6 6 5 7 5 3 4 3 3 2 2 2 2 3 3 5 4 4 4 4 3 3 3 Tool/Special . | . . . . . . . . . . . . . . . . . . . . . . . . . . . . . . . . . Unused Backups 75 | . . . 6 . 1 1 1 . 12 3 3 1 . 5 1 5 1 6 2 . 1 4 . 7 . 2 . 2 . 2 . 9 Power 3 | . . . 1 . . . . . 1 . . . . . . . . . . . 1 . . . . . . . . . . . Propulsion 3 | . . . . . . . . . . . . . . . . 1 . 1 . . . 1 . . . . . . . . . . Utility 56 | . . . 1 . 1 1 1 . 8 3 2 1 . 5 1 3 . 3 2 . . 3 . 7 . 2 . 2 . 2 . 8 Weapon 11 | . . . 3 . . . . . 3 . 1 . . . . 1 . 2 . . . . . . . . . . . . . 1 Tool/Special 2 | . . . 1 . . . . . . . . . . . . . 1 . . . . . . . . . . . . . . . Average Slot Usage (%) 93 | . 99 99 99 100 100 100 93 99 99 99 95 99 93 85 87 87 92 88 87 88 89 92 88 96 99 86 81 84 80 85 84 72 Engine 4 | . 14 14 11 11 11 11 9 9 6 8 7 . . . . . . . . . . . . . . . . . . . . . Reactor 4 | . . . . . . . . . . . . 6 6 5 6 6 5 1 5 9 10 10 9 8 9 9 8 11 12 12 12 9 Treads 21 | . 27 28 32 33 33 33 27 26 27 27 30 30 26 24 25 25 29 20 . . . . . . . 12 13 13 12 12 12 9 Leg 3 | . . . . . . . . . . . . . . . . . . 4 26 22 21 24 23 26 28 2 . . . . . . Device 7 | . 10 5 10 11 11 11 9 9 9 8 6 4 . 2 2 8 8 4 5 5 5 8 3 7 9 8 11 13 12 11 7 5 Storage 7 | . 14 14 11 11 11 11 9 9 9 9 7 7 6 7 6 6 6 5 5 5 5 5 4 5 8 4 4 4 4 4 4 3 Processor 3 | . . . . . . . . . . . 2 7 6 . . . 3 5 5 5 13 14 9 7 4 4 4 6 8 8 8 8 Hackware 13 | . . . . . . . 4 16 18 18 15 18 20 14 17 15 11 7 14 18 15 7 23 22 23 27 26 21 20 26 24 23 Protection 3 | . 3 8 . . . . 7 1 . . . . 6 7 7 4 5 12 8 4 . 3 . . . . . . . . 4 2 Energy Gun 2 | . 2 10 28 . . . . . . . . . . . . . . . . . . . . . . . . . . . . . Ballistic Gun 8 | . 4 . 3 23 23 32 26 20 18 13 12 11 8 12 17 14 5 5 . . . . . 2 4 . . . . . . . Ballistic Cannon 6 | . 19 16 . . . . . . 7 8 7 6 6 3 . 1 5 6 10 9 10 10 9 2 . 7 8 8 8 7 8 6 Special Weapon 1 | . . . . . . . . . . . . 1 3 . 1 2 3 2 5 4 3 4 4 5 8 4 4 4 4 3 3 2 Peak Build Rating 185 | 7 10 17 23 22 22 23 28 28 41 43 48 54 64 69 69 84 93 131 141 147 155 156 152 160 151 163 171 174 174 182 179 185 Average Rating 77 | 5 8 12 20 20 21 22 25 27 33 39 44 51 60 61 62 68 84 88 130 139 150 152 151 147 148 159 164 171 174 177 176 151 On Entrance 87 | . 7 9 16 22 21 22 23 26 28 41 40 48 51 60 68 63 81 81 128 141 142 155 145 152 150 150 161 168 174 174 175 179 Avg Prop Armor Cover (%) 3 | . . . . . . . . . . 6 . . . . 3 3 . 7 . . . . . . . . . . . . . . Naked Turns . | . . . . . . . . . . . . . . . . . . . . . . . . . . . . . . . . . Heaviest Build 210 | 14 54 56 103 103 103 103 111 106 109 109 123 113 134 150 146 145 134 172 162 169 167 178 168 175 168 172 194 188 188 202 207 210 Greatest Support 240 | 40 40 40 60 60 60 60 60 60 69 69 92 86 86 86 98 118 168 210 180 180 180 180 180 180 160 240 240 240 240 240 240 240 Greatest Overweight (x) 3 | . 1 1 1 1 1 1 2 2 1 2 1 1 1 2 1 2 . 3 . 1 . . . 1 1 1 . . . . . 1 Average Overweight (x) . | . . 1 . 1 1 1 1 1 1 1 1 1 1 1 1 . . . . . . . . . . . . . . . . . Largest Inventory Capacity 25 | 8 20 20 25 25 25 25 25 25 25 25 25 25 25 25 25 25 25 25 25 25 25 25 25 25 25 25 25 25 25 25 25 25 Average Capacity 24 | 7 16 20 23 25 25 25 25 25 25 25 25 25 25 25 25 25 25 25 25 25 25 25 25 25 25 25 25 25 25 25 25 21 Most Carried 25 | 2 20 20 25 25 25 25 25 25 25 25 25 25 25 25 25 25 25 25 25 25 25 25 25 25 25 25 25 25 25 25 25 25 Average Carried 23 | 1 12 19 23 24 24 24 24 23 24 24 24 23 23 23 24 24 24 24 24 23 24 24 24 24 24 24 25 24 25 24 25 20 Final Capacity 25 | 8 20 20 25 25 25 25 25 25 25 25 25 25 25 25 25 25 25 25 25 25 25 25 25 25 25 25 25 25 25 25 25 5 Final Carried 25 | 2 20 20 24 25 25 25 25 24 24 25 25 23 24 25 24 25 25 25 25 24 24 25 24 25 25 25 25 25 25 25 25 3 Class Distribution -------------------- 29% | Botlord-Tank 14% | Mutant 13% | Botlord-Skirmisher 10% | Tank 8% | Bothacker-Skirmisher 8% | Hacker-Skirmisher 3% | Bothacker-Mutant 3% | Skirmisher Dominant Class ---------------- Mutant | -10/Materials Mutant | -10/Mines Tank | -9/Materials Gunner | -9/Mines Mutant | -9/Exiles Skirmisher | -8/Mines Tank | -8/Materials Hacker-Skirmisher | -8/Garrison Hacker-Skirmisher | -8/Materials Bothacker-Mutant | -8/Garrison Bothacker-Skirmisher | -7/Factory Bothacker-Skirmisher | -7/Garrison Bothacker-Skirmisher | -6/Factory Bothacker-Tank | -6/Garrison Botlord-Skirmisher | -6/Factory Botlord-Skirmisher | -6/Garrison Botlord-Skirmisher | -5/Factory Botlord-Tank | -5/Garrison Botlord-Tank | -4/Factory Botlord-Tank | -4/Garrison Botlord-Skirmisher | -4/Factory Botlord-Tank | -4/Garrison Botlord-Skirmisher | -3/Research Botlord-Skirmisher | -3/Garrison Botlord-Skirmisher | -3/Research Botlord-Tank | -3/Garrison Botlord-Tank | -2/Research Botlord-Tank | -2/Garrison Botlord-Tank | -1/Access Botlord-Tank | -1/Garrison Botlord-Tank | -1/Access Botlord-Tank | -1/Command Resources | -11 -10 -10 -9 -9 -9 -8 -8 -8 -8 -8 -7 -7 -6 -6 -6 -6 -5 -5 -4 -4 -4 -4 -3 -3 -3 -3 -2 -2 -1 -1 -1 -1 ----------- Run | Yrd Mat Min Mat Min Exi Min Mat Gar Mat Gar Fac Gar Fac Gar Fac Gar Fac Gar Fac Gar Fac Gar Res Gar Res Gar Res Gar Acc Gar Acc Com Matter Collected 25329 | 370 712 304 400 110 . 128 891 323 1869 647 225 792 477 1390 1072 1162 366 1772 454 934 709 1500 . 2130 39 2294 261 952 71 1829 461 685 Remotely . | . . . . . . . . . . . . . . . . . . . . . . . . . . . . . . . . . Salvage Created 16402 | 173 517 284 1259 91 . 217 1193 252 1991 601 345 705 695 741 869 727 240 635 316 206 404 599 . 532 . 838 116 257 71 767 392 369 Parts 917 | 13 41 26 82 8 . 22 82 15 149 37 20 24 39 52 44 50 7 24 15 2 20 29 . 25 . 27 8 5 1 17 19 14 Haulers Intercepted 18 | . . . 4 . . . 5 . 3 . 1 . 1 . 2 . . . . . 2 . . . . . . . . . . . Recyclers Shooed 13 | 1 4 . 1 . . . . . 1 . . . 2 . 2 . 1 . 1 . . . . . . . . . . . . . Parts Field Recycled . | . . . . . . . . . . . . . . . . . . . . . . . . . . . . . . . . . Retrieved Matter . | . . . . . . . . . . . . . . . . . . . . . . . . . . . . . . . . . Parts Self-Destructed . | . . . . . . . . . . . . . . . . . . . . . . . . . . . . . . . . . Prevented . | . . . . . . . . . . . . . . . . . . . . . . . . . . . . . . . . . Parts Restored . | . . . . . . . . . . . . . . . . . . . . . . . . . . . . . . . . . Kills | -11 -10 -10 -9 -9 -9 -8 -8 -8 -8 -8 -7 -7 -6 -6 -6 -6 -5 -5 -4 -4 -4 -4 -3 -3 -3 -3 -2 -2 -1 -1 -1 -1 ------- Run | Yrd Mat Min Mat Min Exi Min Mat Gar Mat Gar Fac Gar Fac Gar Fac Gar Fac Gar Fac Gar Fac Gar Res Gar Res Gar Res Gar Acc Gar Acc Com Combat Hostiles Destroyed 308 | . 9 7 19 3 . . 15 8 26 17 6 20 5 26 13 21 2 17 3 4 6 18 . 15 . 16 2 7 1 14 6 2 Melee 1 | . . . . . . . . . . . . . . 1 . . . . . . . . . . . . . . . . . . Guns 110 | . 2 1 9 2 . . 13 4 13 14 3 10 1 8 10 15 2 2 . . . . . 1 . . . . . . . . Cannons 150 | . 7 6 . . . . . . 13 3 3 10 4 6 . 1 . 11 2 4 6 14 . 12 . 16 2 7 1 14 6 2 AOE 44 | . . . 8 1 . . 2 4 . . . . . 11 3 5 . 4 1 . . 4 . 1 . . . . . . . . Classes Destroyed 25 | 2 6 1 4 1 . . 1 1 4 1 . . . 2 . . . 2 . . . . . . . . . . . . . . Worker 34 | . 2 3 3 1 . 1 10 . 7 . 1 . 2 . 2 . . . . . 1 . . . . . . . . . 1 . Builder 23 | . 5 2 1 . . 2 2 . 5 . . . 2 . 1 . . . . . 2 . . . . . . . . . 1 . Tunneler 15 | 5 . 1 . . . 3 2 . 3 . . . 1 . . . . . . . . . . . . . . . . . . . Hauler 18 | . . . 4 . . . 5 . 3 . 1 . 1 . 2 . . . . . 2 . . . . . . . . . . . Recycler 21 | 1 3 1 1 . . 1 1 . 8 . . . 2 . . . 1 . 2 . . . . . . . . . . . . . Mechanic 2 | . . . 1 . . . . . 1 . . . . . . . . . . . . . . . . . . . . . . . Operator 5 | . . . 3 . . . . . 2 . . . . . . . . . . . . . . . . . . . . . . . Watcher 13 | . 3 . 4 . . . . . 4 . . . . . 1 . . 1 . . . . . . . . . . . . . . Swarmer 64 | . 2 6 4 . . . 5 . 4 4 . 8 1 4 3 11 . 1 . . 2 5 . . . 1 . 2 . 1 . . Cutter 15 | . . . . . . . . 2 . . . . . 5 . . . 4 . . . . . 4 . . . . . . . . Saboteur 3 | . . . . . . . . . . . . . . 1 . . . . . . . . . . . 2 . . . . . . Grunt 105 | . 6 . 10 2 . . 6 5 5 6 3 9 . 8 5 6 1 9 . . 3 8 . 3 . 5 . 1 1 1 2 . Brawler 16 | . . . . . . . . . 3 1 . . . 2 3 . 1 . . 2 . 1 . 1 . . . 1 . . 1 . Duelist 8 | . . . . . . . . . 2 1 . 1 . 1 . . . . . 1 . 1 . . . 1 . . . . . . Protector 1 | . . . . . . . . . . . . . . . . . . 1 . . . . . . . . . . . . . . Sentry 36 | . . 1 5 . . . 3 . 7 1 1 2 3 2 . . . . . . . 1 . . . 5 . 2 . 3 . . Demolisher 1 | . . . . . . . . . . . . . . . . . . 1 . . . . . . . . . . . . . . Specialist 5 | . . . . . . . . . 4 . . . . . . . . . . . . . . . . . . 1 . . . . Hunter 12 | . . . . . . . 1 1 . 2 . . . . 1 1 . 1 1 . . . . . . . . . . 4 . . Programmer 39 | . . . . . . . . . . 2 2 . 1 2 1 2 . 1 2 . 1 2 . 7 . 3 2 1 . 5 3 2 Heavy 1 | . . . . . . . . . 1 . . . . . . . . . . . . . . . . . . . . . . . Behemoth 4 | . . . . . . . . . . . . . . 1 . 1 . . . 1 . . . . . . . . . 1 . . Subdweller 1 | . 1 . . . . . . . . . . . . . . . . . . . . . . . . . . . . . . . Zionite 1 | . . . 1 . . . . . . . . . . . . . . . . . . . . . . . . . . . . . Assembled 1 | . . . . 1 . . . . . . . . . . . . . . . . . . . . . . . . . . . . Thug 1 | . . . 1 . . . . . . . . . . . . . . . . . . . . . . . . . . . . . Best Kill Streak 8 | 6 4 4 4 2 . 3 5 6 7 4 3 5 5 7 6 8 3 6 2 1 3 7 . 2 . 3 2 3 1 3 2 2 Combat Bots Only 8 | . 2 3 4 2 . . 3 6 5 4 2 5 4 7 5 8 2 6 1 1 2 7 . 2 . 3 2 3 1 3 2 2 Max Kills in Single Turn 4 | 1 2 1 3 1 . 1 2 2 2 1 1 1 2 3 2 3 1 4 1 1 2 3 . 1 . 1 1 1 1 1 1 1 Gunslinging 1 | . . . . . . . . . . . . . . 1 . . . . . . . . . . . . . . . . . . Exploded 4 | . . . 3 1 . . 2 2 . . . . . 3 1 3 . 4 1 . . 3 . 1 . . . . . . . . Melee 1 | . . . . . . . . . . . . . . 1 . . . . . . . . . . . . . . . . . . Uniques/NPCs Destroyed . | . . . . . . . . . . . . . . . . . . . . . . . . . . . . . . . . . Combat | -11 -10 -10 -9 -9 -9 -8 -8 -8 -8 -8 -7 -7 -6 -6 -6 -6 -5 -5 -4 -4 -4 -4 -3 -3 -3 -3 -2 -2 -1 -1 -1 -1 -------- Run | Yrd Mat Min Mat Min Exi Min Mat Gar Mat Gar Fac Gar Fac Gar Fac Gar Fac Gar Fac Gar Fac Gar Res Gar Res Gar Res Gar Acc Gar Acc Com Hostile Shots Fired 1860 | . 35 36 59 . . . 35 29 58 81 16 92 154 142 83 171 13 97 35 36 47 138 . 137 . 84 2 36 2 72 48 122 Missed 515 | . 12 9 20 . . . 11 7 21 26 4 28 57 36 30 46 4 25 9 9 9 43 . 28 . 18 . 11 1 19 14 18 Deflected 21 | . . . . . . . . . . . . . . . . . . . . . 3 17 . 1 . . . . . . . . Hits 1345 | . 23 27 39 . . . 24 22 37 55 12 64 97 106 53 125 9 72 26 27 38 95 . 109 . 66 2 25 1 53 34 104 Melee 62 | . . . . . . . . 4 . . . . . 3 11 . . 5 . 10 . . . 29 . . . . . . . . Projectile 1283 | . 23 27 39 . . . 24 18 37 55 12 64 97 103 42 125 9 67 26 17 38 95 . 80 . 66 2 25 1 53 34 104 AOE 37 | . . . . . . . . 1 . . . . . 1 . . . 8 . . . . . 2 . . . . . . . 25 Critical Strikes 92 | . 2 . . . . . 1 3 3 1 . 1 . 9 3 4 . 8 4 . 1 3 . 18 . 4 1 1 . 3 . 22 Part Disruptions 4 | . . . . . . . . . . 1 . . . . . . . . . . . . . 2 . . . 1 . . . . Actively Blocked 2 | . . . . . . . . . . . . . . . . . . . . . . . . 1 . . . 1 . . . . Damage Taken 22985 | . 289 209 479 7 . . 214 305 441 634 100 689 778 1841 1090 2202 216 1621 501 482 431 994 . 1698 38 1006 131 305 10 604 255 5415 Core 3002 | . 30 37 33 . . . 3 22 29 55 24 90 23 246 59 216 30 91 20 9 93 . . 83 . 176 . 33 10 68 13 1509 Absorbed by Shields 5422 | . . . 124 4 . . 96 72 144 222 43 185 . 83 . 20 . 391 148 209 240 663 . 674 36 557 88 300 9 381 241 492 Reduced by Siege Mode 610 | . . . . . . . . . . . . . . . . . . . . . . . . . . 21 . 5 . 69 . 515 Redirected to Shielding 61 | . . . . . . . . . . . . . . . . 15 . 46 . . . . . . . . . . . . . . Ignored by Resistances 773 | . . . . . . . . . . . . . . . . . . . . . . . . 332 . 93 . 123 . 225 . . Regen/Repaired (Parts) 774 | . 84 . 22 . . . . . . . . 224 . . 444 . . . . . . . . . . . . . . . . . Core Remaining (%) 81 | 100 . 73 . . . 91 . . . 80 . 83 . . . 36 . 87 . . . 89 . . . 80 . 97 . . . . Volleys Fired 1517 | 20 61 24 64 6 . 9 69 22 95 32 17 47 28 58 68 63 12 88 46 45 35 76 2 130 21 113 16 72 9 85 47 37 Largest 3 | 2 2 2 3 3 . 3 3 3 3 3 3 3 3 3 3 3 3 3 2 3 3 2 1 3 2 2 2 2 2 2 2 2 Hottest 298 | 40 140 100 140 69 . 69 69 69 93 93 90 90 90 120 84 97 179 197 116 236 236 116 58 298 93 116 116 116 116 178 120 120 Shots Fired 2962 | 40 122 48 171 14 . 27 205 50 281 95 50 107 71 140 159 141 18 154 60 70 67 125 2 180 22 169 26 99 10 129 62 48 Gun 1343 | 40 40 4 164 12 . 27 204 36 186 63 33 60 44 91 136 112 3 37 . . . . . 46 1 4 . . . . . . Cannon 1153 | . 80 44 . . . . . . 93 32 17 33 21 37 . 11 6 77 29 45 62 103 2 73 1 117 21 63 5 100 42 39 Launcher 45 | . . . 7 2 . . 1 14 2 . . . . 9 3 3 . 1 . . . 2 . 1 . . . . . . . . Special 421 | . 2 . . . . . . . . . . 14 6 3 20 15 9 39 31 25 5 20 . 60 20 48 5 36 5 29 20 9 Kinetic 2275 | 40 116 44 27 12 . 27 204 36 279 95 50 93 65 121 136 123 6 102 29 39 60 103 2 99 2 120 21 63 5 95 36 25 Thermal 57 | . 2 . . . . . . . . . . . . . . . 3 12 . 6 2 . . 7 . . . . . 5 6 14 Explosive 45 | . . . 7 2 . . 1 14 2 . . . . 9 3 3 . 1 . . . 2 . 1 . . . . . . . . Electromagnetic 166 | . 4 4 137 . . . . . . . . . . 7 . . . . . . . . . 13 . 1 . . . . . . Robot Hit Streak 46 | 6 9 7 8 10 . 4 17 8 13 12 10 15 18 21 32 26 11 21 7 13 8 11 . 14 7 18 16 46 9 30 9 17 Robot Miss Streak 6 | 3 4 4 4 1 . 3 4 2 6 5 5 3 4 6 4 4 2 4 3 6 4 5 . 3 4 2 2 2 . 2 1 1 Penetration Max 1 | . . . . . . . . . . . . . . . . . 1 1 . . . . . . . . . . . . . . Secondary Targets 9 | . . . 1 . . . 2 . . . . . . 1 3 2 . . . . . . . . . . . . . . . . Max Gunslinging Chain 1 | . . . 1 . . . 1 . . . . . . 1 1 1 . . . . . . . . . . . . . . . . Shots Hit Robots 1995 | 26 72 25 100 11 4 11 141 29 202 71 34 83 54 93 122 102 13 101 41 42 34 73 . 114 13 108 20 74 7 100 39 36 Core Hits 864 | 12 26 15 46 6 . 7 57 17 141 48 19 56 40 80 45 46 4 29 6 8 14 25 . 23 . 24 4 15 2 28 10 11 Critical Kills 7 | . . . . . . . . . . . . . . 1 1 . 1 4 . . . . . . . . . . . . . . Critical Parts Destroyed 13 | 2 . . . . . . 2 . . . . . . . . . . 9 . . . . . . . . . . . . . . Critical Strikes 64 | 2 2 . 3 . . . 2 . . . . 1 . 2 1 1 1 14 4 . 5 4 . 4 . 3 2 2 . 9 2 . Destroy 21 | 2 . . . . . . 2 . . . . . . 2 1 . 1 13 . . . . . . . . . . . . . . Blast 39 | . 2 . . . . . . . . . . . . . . 1 . 1 4 . 5 4 . 4 . 3 2 2 . 9 2 . Corrupt 3 | . . . 3 . . . . . . . . . . . . . . . . . . . . . . . . . . . . . Smash 1 | . . . . . . . . . . . . 1 . . . . . . . . . . . . . . . . . . . . Melee Attacks 127 | . . . 8 . 4 . 2 21 . 43 . 28 . 19 . 2 . . . . . . . . . . . . . . . . Impact 85 | . . . . . . . . . . 36 . 28 . 19 . 2 . . . . . . . . . . . . . . . . Slashing 31 | . . . 8 . . . 2 21 . . . . . . . . . . . . . . . . . . . . . . . . Piercing . | . . . . . . . . . . . . . . . . . . . . . . . . . . . . . . . . . Sneak Attacks 11 | . . . 1 . 4 . 1 . . 5 . . . . . . . . . . . . . . . . . . . . . . Combat Hostiles . | . . . . . . . . . . . . . . . . . . . . . . . . . . . . . . . . . Follow-up Attacks . | . . . . . . . . . . . . . . . . . . . . . . . . . . . . . . . . . Damage Inflicted 49016 | 281 1166 489 3028 237 . 179 2422 748 4058 1324 704 1627 998 3431 2384 2236 189 2176 1051 1083 1758 2933 . 2943 . 3188 707 1986 93 3407 945 1245 Guns 16039 | 281 172 49 1673 156 . 179 2175 387 2287 915 412 824 580 1100 2060 1466 77 548 . . . . . 622 . 76 . . . . . . Cannons 27012 | . 994 384 . . . . . . 1570 409 292 558 418 758 . 218 112 1413 845 1083 1758 2628 . 2085 . 3112 707 1986 93 3407 937 1245 Explosions 5558 | . . 56 1290 81 . . 185 361 201 . . . . 1573 312 552 . 215 206 . . 305 . 221 . . . . . . . . Melee 372 | . . . 65 . . . 62 . . . . 245 . . . . . . . . . . . . . . . . . . . . Ramming 35 | . . . . . . . . . . . . . . . 12 . . . . . . . . 15 . . . . . . 8 . Kinetic 39991 | 281 1154 384 287 156 . 179 2175 387 3857 1324 704 1382 998 1784 2060 1684 91 1705 845 951 1758 2628 . 2382 . 3165 707 1986 93 3208 937 739 Thermal 2108 | . . 56 456 . . . . . 101 . . . . . . . 98 256 206 132 . . . 98 . . . . . 199 . 506 Explosive 4739 | . . . 834 81 . . 185 361 100 . . . . 1573 312 552 . 215 . . . 305 . 221 . . . . . . . . Electromagnetic 1771 | . 12 49 1386 . . . . . . . . . . 74 . . . . . . . . . 227 . 23 . . . . . . Impact 245 | . . . . . . . . . . . . 245 . . . . . . . . . . . . . . . . . . . . Slashing 127 | . . . 65 . . . 62 . . . . . . . . . . . . . . . . . . . . . . . . . Piercing . | . . . . . . . . . . . . . . . . . . . . . . . . . . . . . . . . . Highest Corruption 23 | . . . . . . . . . . 3 . . . 5 7 2 . 2 1 4 4 1 . 19 19 19 . . . 4 4 23 Average Corruption 6 | . . . . . . . . . . 2 . . . 2 2 2 . 1 1 3 4 1 . 9 19 19 . . . 2 4 8 Corruption Purged 10 | . . . . . . . . . . . . . . 5 5 . . . . . . . . . . . . . . . . . Corruption Blocked 6 | . . . . . . . . . . . 1 . 5 . . . . . . . . . . . . . . . . . . . Effects 270 | . . . . . . . . . . 11 . . . 3 7 22 . 19 1 15 3 4 . 27 11 91 . . . 13 22 21 Message Errors 49 | . . . . . . . . . . 2 . . . 1 1 4 . 4 . 3 . . . 2 2 18 . . . 4 5 3 Matter Fused 73 | . . . . . . . . . . 4 . . . . 1 6 . 4 . 5 1 1 . 11 3 22 . . . 1 7 7 Heat Flow Errors 28 | . . . . . . . . . . 3 . . . . 1 2 . 1 . 1 1 1 . 5 . 8 . . . 1 3 1 Energy Discharges 35 | . . . . . . . . . . . . . . 1 . 5 . 2 1 3 . . . 4 . 11 . . . 2 3 3 Parts Rejected 9 | . . . . . . . . . . . . . . . . . . . . 1 . . . 1 1 3 . . . 1 2 . Data Loss (minor) 32 | . . . . . . . . . . 1 . . . . 1 4 . 4 . 1 . 1 . 2 3 11 . . . 1 1 2 Data Loss (major) 11 | . . . . . . . . . . . . . . 1 . . . 1 . . 1 . . . 1 5 . . . 2 . . Misfires 15 | . . . . . . . . . . . . . . . 2 1 . 2 . . . 1 . 2 . 6 . . . . . 1 Alerts 4 | . . . . . . . . . . . . . . . . . . . . 1 . . . . . 2 . . . 1 . . Misdirections 5 | . . . . . . . . . . . . . . . . . . . . . . . . . 1 . . . . . . 4 Weapon Failures 9 | . . . . . . . . . . 1 . . . . 1 . . 1 . . . . . . . 5 . . . . 1 . Overload Shots . | . . . . . . . . . . . . . . . . . . . . . . . . . . . . . . . . . Overflow Damage 1333 | . 49 . 76 . . . 40 . 42 2 . 42 . 1 . 33 5 25 187 34 114 77 . 233 . 80 . 133 . 153 4 3 Projectiles 1032 | . 49 . . . . . . . 7 2 . . . . . . 5 25 119 34 114 71 . 233 . 80 . 133 . 153 4 3 Explosions 234 | . . . 51 . . . 40 . 35 . . . . 1 . 33 . . 68 . . 6 . . . . . . . . . . Melee 67 | . . . 25 . . . . . . . . 42 . . . . . . . . . . . . . . . . . . . . Knockbacks 243 | . 21 6 . . . . . . 45 19 3 16 3 13 1 3 . 13 8 5 11 14 . 17 . 9 4 6 . 15 5 6 Impact 4 | . . . . . . . . . . . . 3 . . 1 . . . . . . . . . . . . . . . . . Kinetic 228 | . 21 6 . . . . . . 45 16 3 12 3 12 . 3 . 13 8 5 10 12 . 16 . 9 4 6 . 13 5 6 Secondary 11 | . . . . . . . . . . 3 . 1 . 1 . . . . . . 1 2 . 1 . . . . . 2 . . Self-Inflicted Damage 293 | . . . 106 . . . . 11 1 . . . . 52 . . . 63 . . . . . 60 . . . . . . . . Shots 10 | . . . 4 . . . . 1 1 . . . . 2 . . . 1 . . . . . 1 . . . . . . . . Rammed 1 | . . . . . . . . . . . . . . . 1 . . . . . . . . . . . . . . . . . Targets Rammed 4 | . . . . . . . . . . . . . . . 1 . . . . . . . . 2 . . . . . . 1 . Kicked 2 | . . . . . . . . . . . . . . . . . . . . . . . . 2 . . . . . . . . Crushed 1 | . . . . . . . . . . . . . . . . . . . . . . . . . . . . . . . 1 . Highest Temperature 702 | . 40 72 313 31 . 24 157 69 84 233 66 189 354 702 280 328 . 410 144 374 296 369 12 366 21 341 144 329 62 288 326 351 Average Temperature 64 | . 15 20 89 15 . 13 39 22 27 63 27 60 152 132 92 93 . 110 43 145 89 114 7 79 12 47 47 63 16 41 49 85 Received Heat Transfer 3529 | . 177 . 136 3 . . 88 79 70 84 18 244 192 794 198 719 9 235 21 37 41 196 . 12 . 60 . 16 4 8 . 88 Effects 29 | . . . . . . . . . . . . . 2 5 . 2 . 5 . 2 3 3 . . . 3 . 1 . . 1 2 Shutdowns 1 | . . . . . . . . . . . . . . . . 1 . . . . . . . . . . . . . . . . Energy Bleed 10 | . . . . . . . . . . . . . 2 1 . 1 . . . 2 . 1 . . . 1 . 1 . . 1 . Interference 13 | . . . . . . . . . . . . . . 1 . . . 3 . . 3 2 . . . 2 . . . . . 2 Matter Decay 2 | . . . . . . . . . . . . . . 2 . . . . . . . . . . . . . . . . . . Short Circuit 1 | . . . . . . . . . . . . . . . . . . 1 . . . . . . . . . . . . . . Damage (minor) 2 | . . . . . . . . . . . . . . 1 . . . 1 . . . . . . . . . . . . . . Siege Activations 16 | . . . . . . . . . . . . . . . . . . 1 . . . . . . . 3 . 1 . 6 3 2 Total Turns 266 | . . . . . . . . . . . . . . . . . . 17 . . . . . . . 53 . 9 . 104 48 35 Longest Duration 50 | . . . . . . . . . . . . . . . . . . 17 . . . . . . . 24 . 9 . 50 36 18 Martial Activations . | . . . . . . . . . . . . . . . . . . . . . . . . . . . . . . . . . Shielding Activations 12 | . . . . . . . . . . . . . . . . . . . 2 3 2 3 . 2 . . . . . . . . Total Turns 189 | . . . . . . . . . . . . . . . . . . . 23 34 29 72 . 31 . . . . . . . . Longest Duration 32 | . . . . . . . . . . . . . . . . . . . 19 18 18 32 . 16 . . . . . . . . Robots Disrupted . | . . . . . . . . . . . . . . . . . . . . . . . . . . . . . . . . . Combat Hostiles . | . . . . . . . . . . . . . . . . . . . . . . . . . . . . . . . . . Robots Corrupted 6 | . . . 4 . . . . . . . . 1 . . . . . . . . . . . 1 . . . . . . . . Combat Hostiles 4 | . . . 2 . . . . . . . . 1 . . . . . . . . . . . 1 . . . . . . . . Parts Fried 9 | . . . 8 . . . . . . . . . . . . . . . . . . . . 1 . . . . . . . . Impact Corruptions 5 | . . . . . . . . . . . . 4 . . . . . . . . . . . 1 . . . . . . . . Robots Melted . | . . . . . . . . . . . . . . . . . . . . . . . . . . . . . . . . . Combat Hostiles . | . . . . . . . . . . . . . . . . . . . . . . . . . . . . . . . . . Parts Melted 1 | . . . . . . . . . . . . . . . . . 1 . . . . . . . . . . . . . . . Heat Transferred 1603 | . . 50 450 . . . . . 100 . . . . . . . 150 350 100 111 . . . 74 . . . . . 110 . 108 Parts Sabotaged 5 | . . . . . . . . . . . . . . 1 . . . . . 4 . . . . . . . . . . . . Parts Stolen . | . . . . . . . . . . . . . . . . . . . . . . . . . . . . . . . . . Parts Stripped . | . . . . . . . . . . . . . . . . . . . . . . . . . . . . . . . . . Power Chain Reactions 5 | . . . 5 . . . . . . . . . . . . . . . . . . . . . . . . . . . . . Alert | -11 -10 -10 -9 -9 -9 -8 -8 -8 -8 -8 -7 -7 -6 -6 -6 -6 -5 -5 -4 -4 -4 -4 -3 -3 -3 -3 -2 -2 -1 -1 -1 -1 ------- Run | Yrd Mat Min Mat Min Exi Min Mat Gar Mat Gar Fac Gar Fac Gar Fac Gar Fac Gar Fac Gar Fac Gar Res Gar Res Gar Res Gar Acc Gar Acc Com Maximum Alert Level 5 | . . . 1 . . . 1 2 2 4 2 3 2 5 3 4 3 5 3 4 3 5 3 4 3 5 4 5 3 5 3 2 Low Security (%) 26 | 100 100 100 14 100 . 100 91 24 64 . . 2 . . . . . . . . . . . . . . . . . . . 15 Level 1 11 | . . . 85 . . . 8 54 22 5 25 28 23 4 . . . . . . . . . . . . . . . . . 50 Level 2 15 | . . . . . . . . 20 13 27 74 29 76 18 46 26 92 16 64 9 . . . . 55 9 . . . . . 33 Level 3 23 | . . . . . . . . . . 53 . 39 . 23 53 54 7 30 35 57 100 25 100 41 44 29 88 18 100 22 100 . Level 4 19 | . . . . . . . . . . 13 . . . 43 . 18 . 45 . 33 . 60 . 58 . 38 11 69 . 71 . . Level 5 3 | . . . . . . . . . . . . . . 10 . . . 7 . . . 14 . . . 21 . 12 . 5 . . High Security . | . . . . . . . . . . . . . . . . . . . . . . . . . . . . . . . . . Max Security . | . . . . . . . . . . . . . . . . . . . . . . . . . . . . . . . . . Peak Influence 1930 | 10 68 76 386 144 . 10 240 483 604 1220 640 1060 556 1759 931 1305 827 1768 952 1525 1059 1849 1039 1551 873 1930 1140 1739 1073 1670 1078 620 Initial 1085 | . . 16 . 144 . . . 143 235 388 640 195 556 328 923 408 684 538 928 510 800 730 1039 762 872 426 1085 840 1043 844 1001 617 Average 668 | 1 14 14 239 20 . . 82 327 216 827 458 622 443 1115 713 857 632 1144 617 1048 900 1288 1029 1194 689 1212 1055 1315 1052 1299 1004 355 Influence Increases 21203 | 30 403 285 1043 93 . 35 651 350 997 912 201 925 345 1551 422 1047 457 1540 488 1145 725 1299 8 1149 91 1884 295 979 63 1156 406 228 Destroy 0b10 Robot/C 9895 | . 160 180 460 60 . . 380 160 520 500 120 520 200 800 260 520 260 680 160 460 340 600 . 500 30 780 105 345 15 525 195 60 Destroy 0b10 Robot/NC 752 | 30 65 35 90 5 . 35 100 . 165 . 10 5 55 . 30 5 15 10 20 . 25 . . . . 4 4 . . 4 8 32 Destroy Leader 1320 | . 46 30 158 10 . . 90 20 174 30 42 40 54 40 46 40 24 30 40 50 64 60 . 48 8 40 32 32 . 32 24 16 Allied During Kill 2600 | . . 8 27 10 . . 14 . . 31 . 32 34 96 . 12 88 155 28 375 240 120 . 203 22 480 97 114 15 280 92 27 Successful Hack 321 | . 17 . 38 . . . 5 . 33 21 14 6 . 12 18 . 12 7 18 24 12 14 . . 29 . 9 . 18 11 . 3 Select Force Hacks 150 | . 60 . 30 . . . 30 . . . . . . . . . . . 30 . . . . . . . . . . . . . Disable Machine 429 | . 15 30 60 . . . 15 . 60 . . . . 30 15 . 15 . 60 15 . . . 30 . . 36 . . 24 24 . Anti-Garrison Action 3709 | . . . . . . . . 100 . 250 . 250 . 450 . 400 . 600 . 100 . 400 . 289 . 416 . 265 . 189 . . Destroy Structure 1598 | . 10 2 120 8 . . 17 70 30 65 . 42 2 123 23 40 28 58 132 106 44 75 8 79 2 128 12 127 15 79 63 90 Partial Spotted 42 | . . . . . . . . . . . 15 . . . . . 15 . . . . . . . . . . . . 12 . . Lose Combat Pursuer 387 | . 30 . 60 . . . . . 15 15 . 30 . . 30 30 . . . 15 . 30 . . . 36 . 96 . . . . Influence Decreases 21028 | 30 359 329 672 451 13 35 431 87 882 290 1142 144 936 261 1598 325 993 541 1527 349 1207 493 840 615 1074 522 1105 360 746 542 1111 1018 Entered New Map 11008 | . . 28 . 227 13 . . 77 248 210 580 84 504 141 836 175 621 231 840 219 725 313 810 255 679 142 845 280 696 212 669 348 Time Decay 5460 | 30 359 301 642 204 . 35 401 . 634 . 392 . 362 . 392 . 222 . 262 . 302 . 30 . 120 . 130 . 50 . 362 230 Lost Part 680 | . . . 10 . . . 10 10 . 20 . 20 . 60 40 90 20 50 . 10 . 20 . 80 . 10 10 . . 30 . 190 Lost Ally 2630 | . . . 20 20 . . 20 . . 60 20 40 70 60 30 60 130 260 50 120 180 160 . 280 . 370 120 80 . 300 80 100 Purge Threat 1250 | . . . . . . . . . . . 150 . . . 300 . . . 375 . . . . . 275 . . . . . . 150 Squads Dispatched 55 | . 4 1 5 . . . 3 . 6 . 3 . 4 . 5 . 5 . 3 . 6 . . . 3 . 1 . . . 4 2 Investigation 19 | . 4 1 3 . . . 1 . . . 1 . . . 2 . 3 . 1 . 1 . . . 1 . . . . . . 1 Extermination 8 | . . . . . . . . . . . 1 . 1 . 2 . . . 1 . 1 . . . . . . . . . 1 1 Reinforcement 13 | . . . 2 . . . 2 . 3 . 1 . . . 1 . . . 1 . 3 . . . . . . . . . . . Assault 4 | . . . . . . . . . . . . . . . . . 1 . . . . . . . . . . . . . 3 . Garrison 11 | . . . . . . . . . 3 . . . 3 . . . 1 . . . 1 . . . 2 . 1 . . . . . Intercept . | . . . . . . . . . . . . . . . . . . . . . . . . . . . . . . . . . Searches Triggered . | . . . . . . . . . . . . . . . . . . . . . . . . . . . . . . . . . Unchained Authorized 1 | . . . . . . . . . . . . . . . . . . . . . . . . . . . 1 . . . . . Construction Impeded 2 | . . . . . . . . . . . 1 . . . . . . . . . 1 . . . . . . . . . . . Haulers Reinforced 2 | . . . . . . . . . . . . . . . . . . . . . 2 . . . . . . . . . . . Active Scanning Responses . | . . . . . . . . . . . . . . . . . . . . . . . . . . . . . . . . . Cargo Convoy Interrupts 1 | . . . . . . . . . . . . . 1 . . . . . . . . . . . . . . . . . . . Stealth | -11 -10 -10 -9 -9 -9 -8 -8 -8 -8 -8 -7 -7 -6 -6 -6 -6 -5 -5 -4 -4 -4 -4 -3 -3 -3 -3 -2 -2 -1 -1 -1 -1 --------- Run | Yrd Mat Min Mat Min Exi Min Mat Gar Mat Gar Fac Gar Fac Gar Fac Gar Fac Gar Fac Gar Fac Gar Res Gar Res Gar Res Gar Acc Gar Acc Com Distress Signals 18 | . . . 3 . . . 2 . 4 . . . . . . 1 . 1 . . 2 . . . . 1 . . . . 1 3 Communications Jammed 309 | . . . . . . . . . . . . . 9 . . . 1 16 . . . . . . 6 28 . . 99 . 150 . Distress Signals 309 | . . . . . . . . . . . . . 9 . . . 1 16 . . . . . . 6 28 . . 99 . 150 . Times Spotted 693 | . 20 7 36 4 . . 21 8 36 28 5 28 13 37 19 37 15 48 19 25 33 41 . 41 10 48 7 33 2 41 20 11 Peak Tracking Total 11 | . 4 3 4 3 . . 4 4 6 5 2 5 4 7 5 6 3 5 5 4 6 5 . 6 4 11 3 9 2 7 6 4 Tactical Retreats 19 | . 1 . 4 . . . . . 1 1 . 1 . . 1 2 . . . 1 . 2 . . . 1 . 4 . . . . Traps | -11 -10 -10 -9 -9 -9 -8 -8 -8 -8 -8 -7 -7 -6 -6 -6 -6 -5 -5 -4 -4 -4 -4 -3 -3 -3 -3 -2 -2 -1 -1 -1 -1 ------- Run | Yrd Mat Min Mat Min Exi Min Mat Gar Mat Gar Fac Gar Fac Gar Fac Gar Fac Gar Fac Gar Fac Gar Res Gar Res Gar Res Gar Acc Gar Acc Com Traps Triggered 51 | . 3 . 1 . . . . 2 . 10 . 3 1 7 . 1 . 4 1 5 . 2 . 3 . 2 1 2 . 2 1 . Indirectly . | . . . . . . . . . . . . . . . . . . . . . . . . . . . . . . . . . Trap Hack Attempts . | . . . . . . . . . . . . . . . . . . . . . . . . . . . . . . . . . Triggered . | . . . . . . . . . . . . . . . . . . . . . . . . . . . . . . . . . Disarmed . | . . . . . . . . . . . . . . . . . . . . . . . . . . . . . . . . . Reprogrammed . | . . . . . . . . . . . . . . . . . . . . . . . . . . . . . . . . . Reused . | . . . . . . . . . . . . . . . . . . . . . . . . . . . . . . . . . Traps Extracted . | . . . . . . . . . . . . . . . . . . . . . . . . . . . . . . . . . Installed . | . . . . . . . . . . . . . . . . . . . . . . . . . . . . . . . . . Triggered . | . . . . . . . . . . . . . . . . . . . . . . . . . . . . . . . . . Machines | -11 -10 -10 -9 -9 -9 -8 -8 -8 -8 -8 -7 -7 -6 -6 -6 -6 -5 -5 -4 -4 -4 -4 -3 -3 -3 -3 -2 -2 -1 -1 -1 -1 ---------- Run | Yrd Mat Min Mat Min Exi Min Mat Gar Mat Gar Fac Gar Fac Gar Fac Gar Fac Gar Fac Gar Fac Gar Res Gar Res Gar Res Gar Acc Gar Acc Com Machines Disabled 76 | . 1 2 4 . . . 1 1 4 2 . 3 . 6 1 4 1 5 4 3 . 5 . 7 . 6 3 5 . 6 2 . Max in Single Turn 3 | . 1 1 1 . . . 1 1 3 1 . 1 . 2 1 1 . 1 2 1 . 1 . 1 . 1 1 1 . 1 1 . Garrison Relay 41 | . . . . . . . . 1 . 2 . 2 . 3 . 4 . 5 . 1 . 5 . 5 . 5 . 5 . 3 . . Machines Repaired . | . . . . . . . . . . . . . . . . . . . . . . . . . . . . . . . . . Machines Dismantled . | . . . . . . . . . . . . . . . . . . . . . . . . . . . . . . . . . Machines Sabotaged . | . . . . . . . . . . . . . . . . . . . . . . . . . . . . . . . . . Overloaded Fab Kills . | . . . . . . . . . . . . . . . . . . . . . . . . . . . . . . . . . Hacking | -11 -10 -10 -9 -9 -9 -8 -8 -8 -8 -8 -7 -7 -6 -6 -6 -6 -5 -5 -4 -4 -4 -4 -3 -3 -3 -3 -2 -2 -1 -1 -1 -1 --------- Run | Yrd Mat Min Mat Min Exi Min Mat Gar Mat Gar Fac Gar Fac Gar Fac Gar Fac Gar Fac Gar Fac Gar Res Gar Res Gar Res Gar Acc Gar Acc Com Machines Accessed 106 | . 10 1 11 . 2 . 4 2 10 3 4 3 3 2 6 2 4 3 5 2 4 4 2 1 5 3 3 2 2 1 . 2 Terminals 65 | . 7 . 7 . . . 2 2 9 3 2 3 . 2 4 2 . 3 1 2 1 4 . 1 1 3 1 2 . 1 . 2 Fabricators 9 | . . . . . . . . . . . . . 2 . 1 . 1 . 2 . 1 . 1 . 1 . . . . . . . Repair Stations 4 | . 1 . 1 . . . . . . . . . . . . . 1 . . . . . . . . . . . 1 . . . Recycling Units 3 | . 2 . 1 . . . . . . . . . . . . . . . . . . . . . . . . . . . . . Scanalyzers 10 | . . . 2 . . . 1 . . . 1 . . . . . 1 . 1 . 1 . . . 2 . 1 . . . . . Garrison Access 12 | . . . . . . . 1 . 1 . 1 . 1 . 1 . 1 . 1 . 1 . 1 . 1 . 1 . 1 . . . Total Hacks 300 | . 31 1 34 . 5 . 19 6 48 5 14 11 4 6 23 4 11 6 10 5 13 8 3 2 9 5 5 4 2 2 . 4 Successful 153 | . 18 1 20 . 5 . 13 2 21 2 6 3 4 1 14 1 3 2 8 3 5 2 3 . 6 1 2 1 2 1 . 3 Failed 146 | . 13 . 14 . . . 6 4 26 3 8 8 . 5 9 3 8 4 2 2 8 6 . 2 3 4 3 3 . 1 . 1 Catastrophic 33 | . . . . . . . . 1 8 1 3 1 . 3 1 2 2 2 . . 1 3 . 2 . 2 . 1 . . . . Database Lockouts 1 | . . . . . . . . . 1 . . . . . . . . . . . . . . . . . . . . . . . Manual 116 | . 22 . 14 . 1 . 6 1 25 2 5 4 1 4 9 4 1 3 4 2 1 4 . . . 2 . . . 1 . . Terminals 205 | . 25 . 21 . . . 11 6 46 5 7 11 . 6 19 4 . 6 2 5 3 8 . 2 2 5 1 4 . 2 . 4 Fabricators 14 | . . . . . . . . . . . . . 3 . 2 . 2 . 3 . 2 . 1 . 1 . . . . . . . Repair Stations 13 | . 4 . 3 . . . . . . . . . . . . . 5 . . . . . . . . . . . 1 . . . Recycling Units 3 | . 2 . 1 . . . . . . . . . . . . . . . . . . . . . . . . . . . . . Scanalyzers 39 | . . . 9 . . . 5 . . . 4 . . . . . 3 . 4 . 6 . . . 5 . 3 . . . . . Garrison Access 20 | . . . . . . . 3 . 2 . 3 . 1 . 2 . 1 . 1 . 2 . 2 . 1 . 1 . 1 . . . Terminal Hacks 56 | . 7 1 4 . 5 . 3 1 10 2 2 2 . 1 6 . . 1 . 2 1 2 . . 1 . . 1 . 1 . 3 Record 8 | . . . 2 . 4 . . . . . . . . . . . . . . . . . . . . . . . . . . 2 Part Schematic 4 | . 1 . . . . . . . 1 . . . . . 1 . . . . . . . . . 1 . . . . . . . Robot Analysis 4 | . 3 . . . . . . . 1 . . . . . . . . . . . . . . . . . . . . . . . Prototype ID Bank 6 | . 3 . 1 . . . . . 2 . . . . . . . . . . . . . . . . . . . . . . . Open Door 7 | . . 1 . . . . . . . 1 . 1 . . . . . 1 . . . 1 . . . . . 1 . . . 1 Branch Access Points 1 | . . . . . . . . . 1 . . . . . . . . . . . . . . . . . . . . . . . Emergency Access Points 3 | . . . . . . . . . . . . . . 1 . . . . . 1 . . . . . . . . . 1 . . Terminal Index 2 | . . . . . . . 1 . . . 1 . . . . . . . . . . . . . . . . . . . . . Alert Level 1 | . . . . . . . 1 . . . . . . . . . . . . . . . . . . . . . . . . . Unreport Threat 3 | . . . . . . . . . . . 1 . . . 2 . . . . . . . . . . . . . . . . . Locate Traps 6 | . . . 1 . . . 1 . 2 . . . . . 2 . . . . . . . . . . . . . . . . . Recall Investigation 1 | . . . . . . . . . . . . . . . 1 . . . . . . . . . . . . . . . . . Hauler Manifests 2 | . . . . . . . . . 1 . . . . . . . . . . . 1 . . . . . . . . . . . Zone Layout 2 | . . . . . . . . . 2 . . . . . . . . . . . . . . . . . . . . . . . Garrison Registry 5 | . . . . . . . . 1 . 1 . 1 . . . . . . . 1 . 1 . . . . . . . . . . Proto ID Catalog 1 | . . . . . 1 . . . . . . . . . . . . . . . . . . . . . . . . . . . Fabricator Hacks 8 | . . . . . . . . . . . . . 2 . 2 . . . 2 . 1 . 1 . . . . . . . . . Network Status 3 | . . . . . . . . . . . . . 1 . . . . . 1 . . . 1 . . . . . . . . . Load Schematic 2 | . . . . . . . . . . . . . . . 1 . . . . . 1 . . . . . . . . . . . Build 3 | . . . . . . . . . . . . . 1 . 1 . . . 1 . . . . . . . . . . . . . Repair Station Hacks 7 | . 3 . 2 . . . . . . . . . . . . . 1 . . . . . . . . . . . 1 . . . Scan Component 5 | . 2 . 1 . . . . . . . . . . . . . 1 . . . . . . . . . . . 1 . . . Repair 2 | . 1 . 1 . . . . . . . . . . . . . . . . . . . . . . . . . . . . . Recycling Unit Hacks . | . . . . . . . . . . . . . . . . . . . . . . . . . . . . . . . . . Scanalyzer 22 | . . . 7 . . . 4 . . . 2 . . . . . 1 . 2 . 1 . . . 4 . 1 . . . . . Insert Component 2 | . . . . . . . 2 . . . . . . . . . . . . . . . . . . . . . . . . . Analyze 2 | . . . . . . . 2 . . . . . . . . . . . . . . . . . . . . . . . . . Retrieve Study 18 | . . . 7 . . . . . . . 2 . . . . . 1 . 2 . 1 . . . 4 . 1 . . . . . Garrison Access Hacks 17 | . . . . . . . 1 . 2 . 2 . 1 . 2 . 1 . 1 . 2 . 2 . 1 . 1 . 1 . . . Unlock Access 12 | . . . . . . . 1 . 1 . 1 . 1 . 1 . 1 . 1 . 1 . 1 . 1 . 1 . 1 . . . Coupler Status 5 | . . . . . . . . . 1 . 1 . . . 1 . . . . . 1 . 1 . . . . . . . . . Unauthorized Hacks 43 | . 8 . 7 . . . 5 1 9 . . 1 1 . 4 1 . 1 3 1 . . . . . 1 . . . . . . Terminals 36 | . 6 . 6 . . . 4 1 9 . . 1 . . 4 1 . 1 1 1 . . . . . 1 . . . . . . Track 1 | . . . . . . . . . . . . . . . 1 . . . . . . . . . . . . . . . . . Assimilate 1 | . . . . . . . . . 1 . . . . . . . . . . . . . . . . . . . . . . . Botnet 8 | . 1 . . . . . 2 . 3 . . . . . 1 . . . 1 . . . . . . . . . . . . . Operators 1 | . . . . . . . . . . . . . . . 1 . . . . . . . . . . . . . . . . . Skim 19 | . 5 . 6 . . . 2 . 5 . . . . . 1 . . . . . . . . . . . . . . . . . Override 6 | . . . . . . . . 1 . . . 1 . . . 1 . 1 . 1 . . . . . 1 . . . . . . Fabricators 2 | . . . . . . . . . . . . . 1 . . . . . 1 . . . . . . . . . . . . . Haulers 2 | . . . . . . . . . . . . . 1 . . . . . 1 . . . . . . . . . . . . . Repair Stations . | . . . . . . . . . . . . . . . . . . . . . . . . . . . . . . . . . Recycling Units 3 | . 2 . 1 . . . . . . . . . . . . . . . . . . . . . . . . . . . . . Tunnel 3 | . 2 . 1 . . . . . . . . . . . . . . . . . . . . . . . . . . . . . Scanalyzers 2 | . . . . . . . 1 . . . . . . . . . . . 1 . . . . . . . . . . . . . Extract 2 | . . . . . . . 1 . . . . . . . . . . . 1 . . . . . . . . . . . . . Garrison Access . | . . . . . . . . . . . . . . . . . . . . . . . . . . . . . . . . . Data Cores Recovered 3 | . . . 1 . . . . . 1 . . . . . . . . . . . . . . . . . . . . . . 1 Used 1 | . . . . . . . . . . . . . . . . . . . . . . . . . . . . . . . . 1 Hacking Detections 79 | . 7 . 9 . . . 3 1 9 2 3 2 . 2 5 1 3 3 4 2 3 4 1 1 4 3 2 2 1 1 . 1 Full Trace Events 18 | . . . 2 . . . . . . 1 1 . . 2 2 1 3 1 . . 1 1 . . 1 1 . . . . . 1 Feedback Events 4 | . . . . . . . . . . . . . . 1 1 . 1 . . . . . . . . . . . . . . 1 Corruption 3 | . . . . . . . . . . . . . . 1 1 . . . . . . . . . . . . . . . . 1 Hackware Fried 1 | . . . . . . . . . . . . . . . . . 1 . . . . . . . . . . . . . . . Feedback Blocked . | . . . . . . . . . . . . . . . . . . . . . . . . . . . . . . . . . Robot Schematics Acquired . | . . . . . . . . . . . . . . . . . . . . . . . . . . . . . . . . . Robots Built . | . . . . . . . . . . . . . . . . . . . . . . . . . . . . . . . . . Authchips . | . . . . . . . . . . . . . . . . . . . . . . . . . . . . . . . . . Time . | . . . . . . . . . . . . . . . . . . . . . . . . . . . . . . . . . Total Robot Build Rating . | . . . . . . . . . . . . . . . . . . . . . . . . . . . . . . . . . Part Schematics Acquired 11 | . 1 . . . . . 3 . 1 . . . . . 1 . . . 4 . . . . . 1 . . . . . . . Parts Built 3 | . . . . . . . . . . . . . 1 . 1 . . . 1 . . . . . . . . . . . . . Authchips . | . . . . . . . . . . . . . . . . . . . . . . . . . . . . . . . . . Time 270 | . . . . . . . . . . . . . 106 . 25 . . . 139 . . . . . . . . . . . . . Total Part Build Rating 16 | . . . . . . . . . . . . . 6 . 1 . . . 9 . . . . . . . . . . . . . Part Studies Acquired 13 | . . . 6 . . . . . . . 2 . . . . . 1 . . . 1 . . . 2 . 1 . . . . . Parts Repaired 2 | . 1 . 1 . . . . . . . . . . . . . . . . . . . . . . . . . . . . . Time 55 | . 36 . 19 . . . . . . . . . . . . . . . . . . . . . . . . . . . . . Parts Recycled . | . . . . . . . . . . . . . . . . . . . . . . . . . . . . . . . . . Recycled Matter . | . . . . . . . . . . . . . . . . . . . . . . . . . . . . . . . . . Retrieved Matter . | . . . . . . . . . . . . . . . . . . . . . . . . . . . . . . . . . Retrieved Components . | . . . . . . . . . . . . . . . . . . . . . . . . . . . . . . . . . Parts Scanalyzed 2 | . . . . . . . 2 . . . . . . . . . . . . . . . . . . . . . . . . . Part Schematics Acquired 2 | . . . . . . . 2 . . . . . . . . . . . . . . . . . . . . . . . . . Parts Damaged . | . . . . . . . . . . . . . . . . . . . . . . . . . . . . . . . . . Bothacking | -11 -10 -10 -9 -9 -9 -8 -8 -8 -8 -8 -7 -7 -6 -6 -6 -6 -5 -5 -4 -4 -4 -4 -3 -3 -3 -3 -2 -2 -1 -1 -1 -1 ------------ Run | Yrd Mat Min Mat Min Exi Min Mat Gar Mat Gar Fac Gar Fac Gar Fac Gar Fac Gar Fac Gar Fac Gar Res Gar Res Gar Res Gar Acc Gar Acc Com Used RIF Installer 14 | . . . . . . . . 1 . 1 . 1 . 1 . 1 . 1 . 1 . 1 . 2 . 1 . 1 . 2 . . Coupler Efficiency 2 | . . . . . . . . . . . . . . . . . . . . 1 . . . 1 . . . . . . . . Command Fork 1 | . . . . . . . . . . . . . . . . . . . . . . . . . . . . 1 . . . . Threat Obfuscator 1 | . . . . . . . . . . . . . . . . . . . . . . . . 1 . . . . . . . . Signal Jammer 1 | . . . . . . . . . . . . 1 . . . . . . . . . . . . . . . . . . . . Zone Cloak 2 | . . . . . . . . . . 1 . . . . . . . . . . . . . . . . . . . 1 . . Watcher Feeds 1 | . . . . . . . . . . . . . . . . . . . . . . 1 . . . . . . . . . . Patrol Navigation 1 | . . . . . . . . . . . . . . . . . . . . . . . . . . . . . . 1 . . Structural Interface 1 | . . . . . . . . . . . . . . . . 1 . . . . . . . . . . . . . . . . Program Shield 1 | . . . . . . . . . . . . . . . . . . 1 . . . . . . . . . . . . . . Autooverride 2 | . . . . . . . . . . . . . . 1 . . . . . . . . . . . 1 . . . . . . Robots Hacked 231 | . . . . . 4 . . . . 2 . 6 4 1 8 9 7 16 18 7 3 11 . 28 9 19 5 21 4 24 18 7 Non-combat 43 | . . . . . 3 . . . . . . 1 4 . 7 . 1 . 8 . 1 . . . 6 . . . 3 . 7 2 Combat 188 | . . . . . 1 . . . . 2 . 5 . 1 1 9 6 16 10 7 2 11 . 28 3 19 5 21 1 24 11 5 Autooverrided 35 | . . . . . . . . . . . . . . . . 3 2 1 1 . . 2 . 4 . 5 3 2 . 9 2 1 Robot Hacks Applied 230 | . . . . . 4 . . . . 2 . 6 5 1 13 8 5 16 23 8 5 10 . 24 13 17 3 23 5 16 16 7 parse_system 13 | . . . . . 4 . . . . . . . . . . . . . . . . . . 2 . 1 . 3 . 2 . 1 no_distress 6 | . . . . . . . . . . . . . 1 . 2 . . . 2 . 1 . . . . . . . . . . . generate_echo 2 | . . . . . . . . . . . . . 1 . . . . . . . . . . . 1 . . . . . . . find_chute 3 | . . . . . . . . . . . . . 1 . . . . . 2 . . . . . . . . . . . . . ignore_repairs 1 | . . . . . . . . . . . . . . . . . . . . . . . . . . . . . . . 1 . map_walls 1 | . . . . . . . . . . . . . . . . . . . . . . . . . 1 . . . . . . . find_fabricator 1 | . . . . . . . . . . . . . . . 1 . . . . . . . . . . . . . . . . . drop_inventory 7 | . . . . . . . . . . . . . 1 . 2 . . . . . . . . . 1 . . . 1 . 2 . find_recycling 2 | . . . . . . . . . . . . . . . 1 . . . . . . . . . 1 . . . . . . . ignore_parts 5 | . . . . . . . . . . . . . . . 2 . . . 1 . . . . . . . . . 1 . 1 . find_station 1 | . . . . . . . . . . . . . . . . . . . . . 1 . . . . . . . . . . . purge_threat 6 | . . . . . . . . . . . . . . . . . . . 3 . . . . . 2 . . . . . . 1 block_reporting 3 | . . . . . . . . . . . . . . . . . . . 1 . . . . . 1 . . . . . . 1 summon_haulers 1 | . . . . . . . . . . . . . . . . . . . . . . . . . 1 . . . . . . . map_route 13 | . . . . . . . . . . . . . 1 . 3 . 1 . 2 . . . . . 1 . . . 1 . 3 1 find_garrison 5 | . . . . . . . . . . . . . . . . . 1 . 1 . 1 . . . . . 1 . 1 . . . scatter_targeting 1 | . . . . . . . . . . . . . . . . . . 1 . . . . . . . . . . . . . . disrupt_area 2 | . . . . . . . . . . . . . . . . 1 . . 1 . . . . . . . . . . . . . spike_heat 2 | . . . . . . . . . . . . . . . . . . . . 1 . . . . . . . 1 . . . . amplify_resonance 36 | . . . . . . . . . . . . . . . . . . 5 4 1 1 1 . 4 . 5 . 8 . 5 2 . disable_weapons 24 | . . . . . . . . . . . . 1 . 1 . 1 1 1 1 1 1 . . 4 1 4 1 2 1 1 2 . reboot_system 1 | . . . . . . . . . . . . . . . . . . . . . . . . . . . . 1 . . . . overwrite_iff 30 | . . . . . . . . . . . . . . . . 2 . 2 1 2 . . . 4 . 6 1 4 . 5 2 1 formatsys_low 3 | . . . . . . . . . . . . 1 . . 1 . . . 1 . . . . . . . . . . . . . formatsys_high 61 | . . . . . . . . . . 2 . 4 . . 1 4 2 7 3 3 . 9 . 10 3 1 . 4 . 3 3 2 Relay Couplers Released 177 | . . . . . . . . 3 . 11 . 7 . 10 . 19 . 21 3 3 . 22 . 20 . 18 . 22 . 14 4 . Machine Destruction 163 | . . . . . . . . 3 . 7 . 7 . 10 . 19 . 21 . 3 . 22 . 20 . 18 . 19 . 14 . . Programmers 14 | . . . . . . . . . . 4 . . . . . . . . 3 . . . . . . . . 3 . . 4 . Attached 90 | . . . . . . . . . . 2 . 4 . 1 3 6 3 9 5 6 . 9 . 12 1 5 . 8 . 11 2 3 Fabnet Peak Effective % . | . . . . . . . . . . . . . . . . . . . . . . . . . . . . . . . . . Robots Rewired 40 | . . . . . . . . . . 3 . 1 . 1 . . . 6 . 8 . . . 9 . 7 . 4 . 1 . . Allies Hacked 6 | . . . . . . . . . . . . . . . . . . . . . . . . 2 . 1 3 . . . . . Hacks Repelled 1 | . . . . . . . . . . 1 . . . . . . . . . . . . . . . . . . . . . . Allies | -11 -10 -10 -9 -9 -9 -8 -8 -8 -8 -8 -7 -7 -6 -6 -6 -6 -5 -5 -4 -4 -4 -4 -3 -3 -3 -3 -2 -2 -1 -1 -1 -1 -------- Run | Yrd Mat Min Mat Min Exi Min Mat Gar Mat Gar Fac Gar Fac Gar Fac Gar Fac Gar Fac Gar Fac Gar Res Gar Res Gar Res Gar Acc Gar Acc Com Total Allies 192 | . . 2 . 3 . . . . . 5 . 8 . 3 2 8 4 18 6 13 . 13 . 29 3 21 4 15 . 23 7 5 Largest Group 14 | . . 2 2 3 2 2 2 . . 5 1 6 5 2 1 3 5 6 3 11 9 4 3 12 14 14 8 8 8 11 4 4 Highest-Rated Group 699 | . . 41 41 40 32 32 32 . . 123 21 172 140 148 41 113 216 247 145 598 397 263 214 590 699 690 574 536 536 655 328 426 Highest-Rated Ally 219 | . . 31 31 16 16 16 16 . . 31 21 39 39 148 41 85 85 49 56 116 49 116 116 116 80 116 148 148 148 148 219 219 Total Orders 12 | . . . . . . . . . . . . 1 . . 1 . 2 . . 1 . 3 . 1 . . . . . 2 1 . STAY 5 | . . . . . . . . . . . . . . . . . . . . . . 2 . 1 . . . . . 1 1 . ROAM 1 | . . . . . . . . . . . . . . . . . . . . 1 . . . . . . . . . . . . FOLLOW 2 | . . . . . . . . . . . . . . . . . . . . . . 1 . . . . . . . 1 . . AID 2 | . . . . . . . . . . . . 1 . . 1 . . . . . . . . . . . . . . . . . EXPLORE 1 | . . . . . . . . . . . . . . . . . 1 . . . . . . . . . . . . . . . RETURN 1 | . . . . . . . . . . . . . . . . . 1 . . . . . . . . . . . . . . . Ally Attacks 1310 | . . 4 16 5 . . 18 . . 32 2 26 33 63 5 23 60 97 26 111 80 80 . 82 46 163 39 85 . 144 46 24 Total Damage 41371 | . . 83 211 28 . . 210 . . 747 68 576 487 1861 147 582 1780 2162 742 4114 2646 2824 . 2676 743 6156 723 3035 . 4688 2281 1801 Kills 247 | . . 2 5 1 . . 4 . . 8 . 6 8 14 . 6 13 19 7 19 11 12 . 13 2 37 6 16 . 22 7 9 Allies Corrupted 16 | . . . . . . . . . . . . . 1 . . . . . . . 1 . . 5 . 2 4 2 . . . 1 Allies Melted 5 | . . . . . . . . . . . . . . . . . . 1 . . . 1 . 1 . 1 . . . 1 . . Intel | -11 -10 -10 -9 -9 -9 -8 -8 -8 -8 -8 -7 -7 -6 -6 -6 -6 -5 -5 -4 -4 -4 -4 -3 -3 -3 -3 -2 -2 -1 -1 -1 -1 ------- Run | Yrd Mat Min Mat Min Exi Min Mat Gar Mat Gar Fac Gar Fac Gar Fac Gar Fac Gar Fac Gar Fac Gar Res Gar Res Gar Res Gar Acc Gar Acc Com Active Infowar (turns) 12610 | 85 1411 2 . 1020 . . . . . . . . . . . . . . . . 628 1019 75 1584 248 1949 261 1244 112 1666 823 483 Optics 10092 | . . . . . . . . . . . . . . . . . . . . . 628 1019 75 1584 248 1949 261 1244 112 1666 823 483 Sensors 2 | . . 2 . . . . . . . . . . . . . . . . . . . . . . . . . . . . . . Seismic 2516 | 85 1411 . . 1020 . . . . . . . . . . . . . . . . . . . . . . . . . . . . ECM 163 | . . . . . . . . . . . . . . . . . . . . . . . . . . . 163 . . . . . Robot Analysis Total 4 | . 3 . . . . . . . 1 . . . . . . . . . . . . . . . . . . . . . . . Derelict Logs Recovered 3 | . . 1 . 2 . . . . . . . . . . . . . . . . . . . . . . . . . . . . Drone Launches 6 | . . . . . . . . . . . . . . . . . 6 . . . . . . . . . . . . . . . Drone Recoveries 3 | . . . . . . . . . . . . . . . . . 3 . . . . . . . . . . . . . . . Exploration | -11 -10 -10 -9 -9 -9 -8 -8 -8 -8 -8 -7 -7 -6 -6 -6 -6 -5 -5 -4 -4 -4 -4 -3 -3 -3 -3 -2 -2 -1 -1 -1 -1 ------------- Run | Yrd Mat Min Mat Min Exi Min Mat Gar Mat Gar Fac Gar Fac Gar Fac Gar Fac Gar Fac Gar Fac Gar Res Gar Res Gar Res Gar Acc Gar Acc Com Turns Passed 36738 | 229 1953 1659 2402 1558 604 922 1354 598 2223 1285 922 1600 828 1853 935 1395 467 2237 568 803 661 1225 75 1584 248 1961 261 1244 112 1666 823 483 Spaces Moved 16699 | 100 857 623 920 698 296 442 563 230 837 495 403 589 343 731 313 626 250 945 318 443 420 915 31 977 247 946 123 598 47 759 341 273 Core 124 | 6 . . . . . . . . . . . . . . . . . . . . . . . . . . . . . . . 118 Treads 12866 | 94 857 623 920 698 296 442 563 230 837 495 403 589 343 731 313 626 250 704 . . . . . . . 829 123 598 47 759 341 155 Legs 3709 | . . . . . . . . . . . . . . . . . . 241 318 443 420 915 31 977 247 117 . . . . . . Wheels . | . . . . . . . . . . . . . . . . . . . . . . . . . . . . . . . . . Hover . | . . . . . . . . . . . . . . . . . . . . . . . . . . . . . . . . . Flight . | . . . . . . . . . . . . . . . . . . . . . . . . . . . . . . . . . Fastest Speed 50 | 50 160 240 160 200 200 200 200 200 200 200 200 205 205 200 202 160 160 112 80 80 76 76 112 80 82 82 160 160 160 160 160 50 Average Speed 170 | 153 185 240 211 200 200 200 200 200 200 201 201 205 205 205 207 177 160 179 110 119 93 81 112 103 83 154 160 160 160 160 160 112 Slowest Speed 320 | 160 240 240 240 200 200 200 240 240 200 240 205 205 205 243 225 320 162 280 112 185 130 112 112 157 157 160 160 160 160 160 160 205 Overloaded Moves 2382 | . . . . . . . . . . . . . . . . . . . 18 60 240 837 . 863 247 117 . . . . . . Propulsion Burnouts . | . . . . . . . . . . . . . . . . . . . . . . . . . . . . . . . . . Robots Hopped . | . . . . . . . . . . . . . . . . . . . . . . . . . . . . . . . . . Potential Cave-ins . | . . . . . . . . . . . . . . . . . . . . . . . . . . . . . . . . . Cave-ins Triggered . | . . . . . . . . . . . . . . . . . . . . . . . . . . . . . . . . . Exploration Rate (%) 53 | 5 96 99 72 99 71 89 42 36 66 61 14 71 11 84 10 91 11 97 14 60 17 95 3 98 15 97 7 96 4 89 18 16 Regions Visited 32 Branch Regions 5 Pre-discovered Areas 12 | . 3 . 4 2 1 . . . 2 . . . . . . . . . . . . . . . . . . . . . . . Known Exits Taken 15 | . . 1 1 . . 1 1 . 1 . 1 . 1 . 1 . 1 . 1 . 1 . 1 . 1 . 1 . 1 . . . Unknown Exits Taken 5 | 1 1 . . 1 1 . . . . . . . . . . . . . . . . . . . . . . . . . 1 . Scrap Searched 3 | . . 1 . 1 . 1 . . . . . . . . . . . . . . . . . . . . . . . . . . Spaces Dug 83 | . 2 . 7 . . . 1 . . 20 . 17 . 9 . . . . 1 . . . 2 2 1 4 1 . 3 7 2 4 Terrain Destroyed 656 | . 2 2 126 12 . . 15 40 22 20 . 17 . 45 33 13 1 43 59 15 21 36 2 46 1 30 3 8 3 17 14 10 Melee 54 | . . . 7 . . . 1 . . 20 . 17 . 9 . . . . . . . . . . . . . . . . . . Projectile 227 | . 2 . . . . . . . . . . . . . . 3 1 26 10 15 21 33 2 28 1 30 3 8 3 17 14 10 AOE 375 | . . 2 119 12 . . 14 40 22 . . . . 36 33 10 . 17 49 . . 3 . 18 . . . . . . . . Terrain Rammed . | . . . . . . . . . . . . . . . . . . . . . . . . . . . . . . . . . Walls Destroyed . | . . . . . . . . . . . . . . . . . . . . . . . . . . . . . . . . . Machines Disabled . | . . . . . . . . . . . . . . . . . . . . . . . . . . . . . . . . . Actions | -11 -10 -10 -9 -9 -9 -8 -8 -8 -8 -8 -7 -7 -6 -6 -6 -6 -5 -5 -4 -4 -4 -4 -3 -3 -3 -3 -2 -2 -1 -1 -1 -1 --------- Run | Yrd Mat Min Mat Min Exi Min Mat Gar Mat Gar Fac Gar Fac Gar Fac Gar Fac Gar Fac Gar Fac Gar Res Gar Res Gar Res Gar Acc Gar Acc Com Total 22652 | 135 1092 740 1247 850 310 466 673 300 1197 648 483 861 422 946 483 800 300 1374 494 668 625 1288 69 1422 284 1320 164 821 78 1109 571 412 Wait 3041 | 5 133 71 196 142 . 11 16 10 193 24 40 160 29 47 59 21 10 195 111 140 147 222 35 190 7 193 22 130 22 216 168 76 Move 16676 | 99 856 622 919 697 295 441 562 229 837 493 403 588 342 730 313 625 250 944 318 442 420 914 31 976 247 945 123 597 47 758 340 273 Hop . | . . . . . . . . . . . . . . . . . . . . . . . . . . . . . . . . . Pick Up 275 | 2 20 4 20 1 5 2 3 2 20 9 8 5 6 20 7 26 2 30 5 6 4 14 . 26 2 11 . 4 . 8 . 3 Fast Attach 151 | 7 3 3 1 . . . 5 2 9 3 . . 1 9 6 9 8 19 3 8 5 9 . 20 1 6 2 2 . 8 2 . Attach 123 | . . . 3 . . . 2 2 . 3 4 5 2 15 7 13 1 11 4 6 . 10 1 15 1 3 . . . 5 . 10 Detach 15 | . . . . . . . . . 1 . 1 . . 4 2 . . . . . . 2 . 2 . . . . . 2 . 1 Swap 314 | 2 13 8 18 4 1 1 7 6 11 15 4 17 9 12 9 19 10 37 3 8 6 9 . 23 3 19 1 10 . 14 10 5 Drop 318 | . 6 8 18 . 5 2 7 2 31 10 6 4 5 20 11 21 7 42 4 8 8 20 . 28 1 18 . 5 . 13 2 6 Fire 1517 | 20 61 24 64 6 . 9 69 22 95 32 17 47 28 58 68 63 12 88 46 45 35 76 2 130 21 113 16 72 9 85 47 37 Melee 127 | . . . 8 . 4 . 2 21 . 43 . 28 . 19 . 2 . . . . . . . . . . . . . . . . Ram . | . . . . . . . . . . . . . . . . . . . . . . . . . . . . . . . . . Kick 2 | . . . . . . . . . . . . . . . . . . . . . . . . 2 . . . . . . . . Crush 2 | . . . . . . . . . . . . . . . 1 . . . . . . . . . . . . . . . 1 . Escape Stasis 68 | . . . . . . . . 4 . 14 . 6 . 12 . . . 5 . 4 . 8 . 10 . 5 . . . . . . Rewire 20 | . . . . . . . . . . 2 . 1 . . . 1 . 3 . 1 . 4 . . 1 4 . 1 . . 1 1 Trap . | . . . . . . . . . . . . . . . . . . . . . . . . . . . . . . . . . Miscellaneous 3 | . . . . . . . . . . . . . . . . . . . . . . . . . . 3 . . . . . . Route ------- -11/Scrapyard -10/Materials (discovered 6 exits: *Mat x3 / *Min x2 / *Sub) -10/Mines (discovered 3 exits: *Mat x2 / *Sub) -9/Materials (discovered 5 exits: *Mat x3 / *Min x2) -9/Mines (discovered 4 exits: *Mat x2 / *Exi / [*Zio]) -9/Exiles -8/Mines -8/Materials (discovered 3 exits: *Fac x2 / Gar) -8/Garrison (discovered 3 exits: *Mat x3) -8/Materials (discovered 3 exits: *Fac x2 / Gar) -8/Garrison (discovered 3 exits: *Fac x3) -7/Factory (discovered 4 exits: *Fac / *Low x2 / Gar) -7/Garrison (discovered 3 exits: *Fac x3) -6/Factory -6/Garrison (discovered 3 exits: *Fac x3) -6/Factory -6/Garrison (discovered 3 exits: *Fac x3) -5/Factory (discovered 2 exits: Fac / Gar) -5/Garrison (discovered 3 exits: *Fac x3) -4/Factory (discovered 3 exits: Res x2 / Gar) -4/Garrison (discovered 3 exits: *Fac x3) -4/Factory -4/Garrison (discovered 3 exits: *Res x3) -3/Research -3/Garrison (discovered 4 exits: *Res x3 / *Res) -3/Research -3/Garrison (discovered 3 exits: *Res x3) -2/Research (discovered 2 exits: Tes / Gar) -2/Garrison (discovered 3 exits: *Acc x3) -1/Access -1/Garrison (discovered 3 exits: [*Acc x3]) -1/Access -1/Command History --------- Turn | Location | Event 6 | -11/Scrapyard | Discovered new exit (range 13) 230 | -11/Scrapyard | Entered Materials 310 | -10/Materials | Build established: Mutant 353 | -10/Materials | Discovered new exit (range 5) 644 | -10/Materials | Discovered new exit (range 13) 723 | -10/Materials | Discovered new exit (range 8) 962 | -10/Materials | Discovered new exit (range 16) 1030 | -10/Materials | Derelicts attacked the area 1140 | -10/Materials | Repaired Broken Lgt. Treads 1495 | -10/Materials | Discovered new exit (range 14) 1775 | -10/Materials | Discovered new exit (range 9) 1946 | -10/Materials | Learned Storage terminal intel 1981 | -10/Materials | Learned Storage stockpile data 2005 | -10/Materials | Learned location of 2 exits from Subcaves 2025 | -10/Materials | Learned location of 2 exits from Mines 2026 | -10/Materials | Learned location of Storage (-7) 2027 | -10/Materials | Learned location of 2 exits from Materials 2028 | -10/Materials | Loaded intel: 1 repair station location 2183 | -10/Materials | Entered Mines 2184 | -10/Mines | Identified exit to Subcaves 2184 | -10/Mines | Identified exit to Materials 2277 | -10/Mines | Discovered exit to Materials (range 3) 2497 | -10/Mines | Found a damaged Exp. Sensor Array with a note attached 2504 | -10/Mines | Found Prototype Device 2711 | -10/Mines | Identified Exp. Sensor Array 2997 | -10/Mines | Received a Rocket Launcher from a helpful Derelict 3147 | -10/Mines | Met a Derelict shopkeep closing up shop 3469 | -10/Mines | Learned Materials garrison access intel 3842 | -10/Mines | Entered Materials 3842 | -9/Materials | Accompanied by 2 allies 3842 | -9/Materials | Evolved 2 slots: Propulsion x1, Weapon x1 3843 | -9/Materials | Identified exit to Mines 3847 | -9/Materials | Led the pair of lost Derelicts to an unsafe place 4165 | -9/Materials | Build established: Tank 4253 | -9/Materials | Discovered new exit (range 16) 5315 | -9/Materials | Repaired Hardlight Generator 5441 | -9/Materials | Discovered new exit (range 15) 5523 | -9/Materials | Identified exit to Materials 5530 | -9/Materials | Learned location of Mines (-9) 5531 | -9/Materials | Learned 4 Recycling zone layouts 5534 | -9/Materials | Learned 2 Materials zone layouts 5549 | -9/Materials | Learned 4 Recycling zone layouts 6244 | -9/Materials | Entered Mines 6341 | -9/Mines | Deemed a non-threat by the Exiles lab entrance 6386 | -9/Mines | A Derelict revealed a hidden shortcut to a safe place 6420 | -9/Mines | Build established: Mutant 6458 | -9/Mines | Assembled infested the area 6463 | -9/Mines | Assisted by a Guerilla fighting off Assembled 6907 | -9/Mines | Learned location of Zion (-7) 6913 | -9/Mines | Discovered exit to Materials (range 8) 6937 | -9/Mines | Assisted by bots powering up and referring to "LRC-V3" 6989 | -9/Mines | Discovered exit to Materials (range 11) 7022 | -9/Mines | Build established: Gunner 7505 | -9/Mines | Learned Materials security intel 7787 | -9/Mines | Discovered new exit (range 5) 7802 | -9/Mines | Entered Exiles 7802 | -9/Exiles | Accompanied by 2 allies 7816 | -9/Exiles | Build established: Tank 7850 | -9/Exiles | Met 8R-AWN 7889 | -9/Exiles | Met EX-HEX 7949 | -9/Exiles | Met EX-BIN 7974 | -9/Exiles | Aligned with FarCom system 7976 | -9/Exiles | Given EX-Vault access code 8024 | -9/Exiles | Opened EX-Vault 8035 | -9/Exiles | Found Potential Leg 8046 | -9/Exiles | Found Potential Leg 8086 | -9/Exiles | Warned to stay clear of 0b10 Research branches 8144 | -9/Exiles | Met EX-DEC 8155 | -9/Exiles | Build established: Mutant 8384 | -9/Exiles | Discovered new exit (range 12) 8406 | -9/Exiles | Left Exiles lab with Potential Leg 8406 | -9/Exiles | Entered Mines 8406 | -8/Mines | Accompanied by 2 allies 8752 | -8/Mines | Build established: Skirmisher 9005 | -8/Mines | Discovered exit to Materials (range 7) 9328 | -8/Mines | Entered Materials 9328 | -8/Materials | Accompanied by 2 allies 9328 | -8/Materials | Evolved 2 slots: Utility x2 9329 | -8/Materials | Identified exit to Factory 9331 | -8/Materials | Loaded intel: 1 garrison access location 9628 | -8/Materials | Build established: Tank 10486 | -8/Materials | Discovered exit to Factory (range 6) 10647 | -8/Materials | Identified exit to Garrison 10682 | -8/Materials | Entered Garrison 10795 | -8/Garrison | Discovered new exit (range 30) 10795 | -8/Garrison | Discovered new exit (range 53) 10795 | -8/Garrison | Discovered new exit (range 59) 10795 | -8/Garrison | Identified exit to Materials 10885 | -8/Garrison | Triggered checkpoint 11067 | -8/Garrison | Installed Relay Interface Framework 11102 | -8/Garrison | Build established: Hacker-Skirmisher 11185 | -8/Garrison | Garrison Relay disabled 11280 | -8/Garrison | Entered Materials 11408 | -8/Materials | Central database locked down 11889 | -8/Materials | Discovered exit to Factory (range 16) 12338 | -8/Materials | Learned Factory emergency access door positions 12356 | -8/Materials | Learned Factory recycling unit intel 12362 | -8/Materials | Learned Storage stockpile data 12365 | -8/Materials | Learned Storage trap positions 12368 | -8/Materials | Learned 4 Recycling zone layouts 12817 | -8/Materials | Discovered exit to Factory (range 16) 13184 | -8/Materials | Garrison activated, responded to threat 13503 | -8/Materials | Identified exit to Garrison 13503 | -8/Materials | Entered Garrison 13687 | -8/Garrison | Triggered checkpoint 13810 | -8/Garrison | Garrison Relay disabled 13941 | -8/Garrison | P-60 Hacker assimilated allied 00-EUJ(g) 14105 | -8/Garrison | Triggered checkpoint 14191 | -8/Garrison | Discovered exit to Factory (range 8) 14311 | -8/Garrison | Triggered checkpoint 14465 | -8/Garrison | Triggered checkpoint 14544 | -8/Garrison | Discovered exit to Factory (range 10) 14587 | -8/Garrison | Triggered checkpoint 14620 | -8/Garrison | Garrison Relay disabled 14677 | -8/Garrison | Expanded RIF knowledge: Zone Cloak 14732 | -8/Garrison | Discovered exit to Factory (range 56) 14732 | -8/Garrison | Discovered exit to Factory (range 20) 14732 | -8/Garrison | Discovered exit to Factory (range 68) 14788 | -8/Garrison | Entered Factory 14788 | -7/Factory | Accompanied by 1 ally 14788 | -7/Factory | Evolved 2 slots: Propulsion x1, Utility x1 14789 | -7/Factory | Identified exit to Lower Caves 14791 | -7/Factory | Loaded intel: 6 recycling unit locations 14923 | -7/Factory | Build established: Bothacker-Mutant 15178 | -7/Factory | Discovered new exit (range 16) 15372 | -7/Factory | Build established: Bothacker-Skirmisher 15710 | -7/Factory | Identified exit to Garrison 15710 | -7/Factory | Entered Garrison 15946 | -7/Garrison | Garrison Relay disabled 16359 | -7/Garrison | Discovered new exit (range 13) 16448 | -7/Garrison | Triggered checkpoint 16470 | -7/Garrison | Discovered new exit (range 10) 16470 | -7/Garrison | Discovered new exit (range 72) 16470 | -7/Garrison | Discovered new exit (range 49) 16470 | -7/Garrison | Identified exit to Factory 16590 | -7/Garrison | Triggered checkpoint 16713 | -7/Garrison | Rescued a captive Derelict 16714 | -7/Garrison | Rescued a captive Derelict 16736 | -7/Garrison | Triggered checkpoint 16768 | -7/Garrison | Expanded RIF knowledge: Signal Jamming 16785 | -7/Garrison | Garrison Relay disabled 16870 | -7/Garrison | Triggered checkpoint 16912 | -7/Garrison | Triggered checkpoint 17310 | -7/Garrison | Entered Factory 17310 | -6/Factory | Accompanied by 5 allies 17310 | -6/Factory | Evolved 2 slots: Utility x2 17573 | -6/Factory | Fabricated Lyr. Heavy Armor Plating (x1) 18121 | -6/Factory | Identified exit to Garrison 18133 | -6/Factory | Cargo convoy interrupted 18138 | -6/Factory | Entered Garrison 18149 | -6/Garrison | Spotted B-86 Titan 18175 | -6/Garrison | Rewired B-90 Cyclops 18181 | -6/Garrison | Allies destroyed B-86 Titan 18290 | -6/Garrison | Triggered checkpoint 18360 | -6/Garrison | Garrison Relay disabled 18544 | -6/Garrison | Triggered checkpoint 18555 | -6/Garrison | Triggered checkpoint 18590 | -6/Garrison | Destroyed 7 combat bots 18807 | -6/Garrison | Discovered new exit (range 10) 18859 | -6/Garrison | Build established: Bothacker-Tank 18984 | -6/Garrison | Triggered checkpoint 19070 | -6/Garrison | Triggered checkpoint 19099 | -6/Garrison | Discovered new exit (range 14) 19165 | -6/Garrison | Expanded RIF knowledge: Autooverride 19262 | -6/Garrison | Spotted B-75 Beast 19336 | -6/Garrison | Destroyed B-75 Beast 19367 | -6/Garrison | Lost 4 parts (1n1u2w) 19430 | -6/Garrison | Found Relay Coupler [Proto] 19433 | -6/Garrison | Found Relay Coupler [Proto] 19437 | -6/Garrison | Found Relay Coupler [Proto] 19618 | -6/Garrison | Found embedded Infiltrators 19629 | -6/Garrison | Garrison Relay disabled 19795 | -6/Garrison | Garrison Relay disabled 19845 | -6/Garrison | Discovered new exit (range 15) 19932 | -6/Garrison | Build established: Botlord-Mutant 19991 | -6/Garrison | Entered Factory 20244 | -6/Factory | Build established: Botlord-Tank 20498 | -6/Factory | Fabricated Huge Storage Unit (x1) 20561 | -6/Factory | Build established: Botlord-Skirmisher 20756 | -6/Factory | Lost 4 parts (3n1u) 20926 | -6/Factory | Identified exit to Garrison 20926 | -6/Factory | Entered Garrison 20961 | -6/Garrison | Expanded RIF knowledge: Structural Interface 21040 | -6/Garrison | Triggered checkpoint 21087 | -6/Garrison | Garrison Relay disabled 21177 | -6/Garrison | Spotted B-75 Beast 21230 | -6/Garrison | Triggered checkpoint 21250 | -6/Garrison | Core integrity fell below 50% 21257 | -6/Garrison | Triggered checkpoint 21289 | -6/Garrison | Destroyed 8 combat bots 21306 | -6/Garrison | Destroyed B-75 Beast 21335 | -6/Garrison | Lost 3 parts (1n1u1w) 21383 | -6/Garrison | Lost 3 parts (1n1u1w) 21407 | -6/Garrison | Destroyed 7 combat bots 21560 | -6/Garrison | Garrison Relay disabled 21592 | -6/Garrison | Triggered checkpoint 21618 | -6/Garrison | Discovered new exit (range 2) 21726 | -6/Garrison | Triggered checkpoint 21805 | -6/Garrison | Discovered new exit (range 12) 21813 | -6/Garrison | Identified exit to Factory 21899 | -6/Garrison | Garrison Relay disabled 22098 | -6/Garrison | Garrison Relay disabled 22126 | -6/Garrison | Triggered checkpoint 22321 | -6/Garrison | Entered Factory 22321 | -5/Factory | Accompanied by 3 allies 22321 | -5/Factory | Evolved 2 slots: Propulsion x2 22337 | -5/Factory | Hacking Suite fried by hacking feedback 22547 | -5/Factory | Lost 3 allies 22621 | -5/Factory | First assault squad dispatched 22654 | -5/Factory | Spotted B-75 Beast 22662 | -5/Factory | Assimilated Beast 6a with formatsys_high 22695 | -5/Factory | Discovered new exit (range 42) 22784 | -5/Factory | Garrison activated, responded to threat 22784 | -5/Factory | Identified exit to Garrison 22788 | -5/Factory | Entered Garrison 22817 | -5/Garrison | Lost 3 allies 22892 | -5/Garrison | Triggered checkpoint 22963 | -5/Garrison | Garrison Relay disabled 23044 | -5/Garrison | Triggered checkpoint 23074 | -5/Garrison | Triggered checkpoint 23316 | -5/Garrison | Lost 4 allies 23391 | -5/Garrison | Rescued a captive Derelict 23392 | -5/Garrison | Rescued a captive Derelict 23460 | -5/Garrison | Triggered checkpoint 23487 | -5/Garrison | Discovered new exit (range 6) 23554 | -5/Garrison | Triggered checkpoint 23558 | -5/Garrison | Build established: Botlord-Tank 23607 | -5/Garrison | Garrison Relay disabled 23786 | -5/Garrison | Triggered checkpoint 23837 | -5/Garrison | Identified exit to Factory 23922 | -5/Garrison | Lost 4 allies 24265 | -5/Garrison | Garrison Relay disabled 24308 | -5/Garrison | Triggered checkpoint 24815 | -5/Garrison | Triggered checkpoint 24877 | -5/Garrison | Expanded RIF knowledge: Program Shield 24899 | -5/Garrison | Garrison Relay disabled 25025 | -5/Garrison | Entered Factory 25025 | -4/Factory | Accompanied by 2 allies 25025 | -4/Factory | Evolved 2 slots: Power x1, Utility x1 25219 | -4/Factory | Discovered new exit (range 81) 25219 | -4/Factory | Discovered new exit (range 84) 25366 | -4/Factory | Fabricated Hvy. Shield Leg (x1) 25588 | -4/Factory | Identified exit to Garrison 25593 | -4/Factory | Entered Garrison 25593 | -4/Garrison | Accompanied by 3 allies 25829 | -4/Garrison | Garrison Relay disabled 25851 | -4/Garrison | Triggered checkpoint 25899 | -4/Garrison | Triggered checkpoint 25978 | -4/Garrison | Triggered checkpoint 26097 | -4/Garrison | Spotted B-86 Titan 26113 | -4/Garrison | Triggered checkpoint 26116 | -4/Garrison | Destroyed B-86 Titan 26158 | -4/Garrison | Identified exit to Factory 26169 | -4/Garrison | Triggered checkpoint 26183 | -4/Garrison | Triggered checkpoint 26239 | -4/Garrison | Expanded RIF knowledge: Coupler Efficiency 26300 | -4/Garrison | Triggered checkpoint 26325 | -4/Garrison | Discovered exit to Factory (range 36) 26325 | -4/Garrison | Discovered exit to Factory (range 72) 26325 | -4/Garrison | Discovered exit to Factory (range 25) 26396 | -4/Garrison | Entered Factory 26396 | -4/Factory | Accompanied by 9 allies 26586 | -4/Factory | Found Prototype Device 26586 | -4/Factory | Identified Adv. EM Shield 26592 | -4/Factory | Found Adv. EM Shield 26707 | -4/Factory | Build established: Botlord-Skirmisher 26785 | -4/Factory | Found Prototype Launcher 26785 | -4/Factory | Identified Tesla Bomb Launcher 26807 | -4/Factory | Allied Derelicts emerged from ambush trap array 26928 | -4/Factory | Spotted B-86 Titan 26944 | -4/Factory | Allies destroyed B-86 Titan 26992 | -4/Factory | Garrison activated, responded to threat 26996 | -4/Factory | Lost 6 allies 27057 | -4/Factory | Identified exit to Garrison 27057 | -4/Factory | Entered Garrison 27065 | -4/Garrison | Spotted B-86 Titan 27099 | -4/Garrison | Triggered checkpoint 27110 | -4/Garrison | Found embedded Infiltrators 27134 | -4/Garrison | Garrison Relay disabled 27235 | -4/Garrison | Spotted B-86 Titan 27252 | -4/Garrison | Triggered checkpoint 27259 | -4/Garrison | Triggered checkpoint 27304 | -4/Garrison | Lost 4 allies 27392 | -4/Garrison | Destroyed 7 combat bots 27462 | -4/Garrison | Rescued a captive Derelict 27468 | -4/Garrison | Spotted B-86 Titan 27468 | -4/Garrison | Spotted B-86 Titan 27486 | -4/Garrison | Triggered checkpoint 27632 | -4/Garrison | Garrison Relay disabled 27651 | -4/Garrison | Garrison Relay disabled 27683 | -4/Garrison | Build established: Botlord-Tank 27688 | -4/Garrison | Expanded RIF knowledge: Watcher Feeds 27699 | -4/Garrison | Triggered checkpoint 27709 | -4/Garrison | Discovered new exit (range 8) 27751 | -4/Garrison | P-70 Sage assimilated allied Sentinel 7i 27863 | -4/Garrison | Discovered new exit (range 14) 27959 | -4/Garrison | Triggered checkpoint 27964 | -4/Garrison | Garrison Relay disabled 28052 | -4/Garrison | Assimilated Titan 7a with formatsys_high 28102 | -4/Garrison | Discovered new exit (range 25) 28102 | -4/Garrison | Discovered new exit (range 22) 28102 | -4/Garrison | Discovered new exit (range 63) 28153 | -4/Garrison | Garrison Relay disabled 28282 | -4/Garrison | Entered Research 28282 | -3/Research | Accompanied by 3 allies 28282 | -3/Research | Evolved 2 slots: Utility x2 28347 | -3/Research | Identified exit to Garrison 28357 | -3/Research | Entered Garrison 28357 | -3/Garrison | Accompanied by 2 allies 28444 | -3/Garrison | Build established: Botlord-Skirmisher 28491 | -3/Garrison | Expanded RIF knowledge: Coupler Efficiency 28537 | -3/Garrison | Garrison Relay disabled 28561 | -3/Garrison | Triggered checkpoint 28572 | -3/Garrison | Spotted B-86 Titan 28574 | -3/Garrison | Assimilated Titan 8a with formatsys_high 28592 | -3/Garrison | Triggered checkpoint 28624 | -3/Garrison | Lost 4 allies 28687 | -3/Garrison | Lost 6 parts (1p1n2u2w) 28733 | -3/Garrison | Triggered checkpoint 28761 | -3/Garrison | Triggered checkpoint 28819 | -3/Garrison | Triggered checkpoint 28852 | -3/Garrison | Garrison Relay disabled 28920 | -3/Garrison | Discovered new exit (range 22) 29075 | -3/Garrison | Found embedded Infiltrators 29084 | -3/Garrison | Discovered new exit (range 4) 29111 | -3/Garrison | Triggered checkpoint 29135 | -3/Garrison | Expanded RIF knowledge: Threat Obfuscation 29186 | -3/Garrison | Garrison Relay disabled 29203 | -3/Garrison | Triggered checkpoint 29206 | -3/Garrison | Discovered new exit (range 5) 29266 | -3/Garrison | Found Unknown Device 29266 | -3/Garrison | Identified Adv. Force Booster 29284 | -3/Garrison | Garrison Relay disabled 29307 | -3/Garrison | Triggered checkpoint 29325 | -3/Garrison | Discovered new exit (range 9) 29326 | -3/Garrison | Triggered checkpoint 29369 | -3/Garrison | Lost 3 allies 29395 | -3/Garrison | Triggered checkpoint 29396 | -3/Garrison | Garrison Relay disabled 29431 | -3/Garrison | System corruption reached 10% 29558 | -3/Garrison | Lost 4 allies 29941 | -3/Garrison | Entered Research 29941 | -3/Research | Accompanied by 11 allies 30187 | -3/Research | Identified exit to Garrison 30189 | -3/Research | Entered Garrison 30189 | -3/Garrison | Accompanied by 13 allies 30225 | -3/Garrison | Triggered checkpoint 30231 | -3/Garrison | Rescued a captive Derelict 30232 | -3/Garrison | Rescued a captive Derelict 30263 | -3/Garrison | Garrison Relay disabled 30272 | -3/Garrison | Lost 4 allies 30405 | -3/Garrison | Lost 3 allies 30478 | -3/Garrison | Found Relay Coupler [Proto] 30480 | -3/Garrison | Found Relay Coupler [Proto] 30483 | -3/Garrison | Found Relay Coupler [Proto] 30487 | -3/Garrison | Found Relay Coupler [Proto] 30611 | -3/Garrison | Lost 5 allies 30652 | -3/Garrison | Build established: Botlord-Tank 30737 | -3/Garrison | Triggered checkpoint 30771 | -3/Garrison | Spotted B-86 Titan 30785 | -3/Garrison | Assimilated Titan 8b with formatsys_high 30789 | -3/Garrison | Triggered checkpoint 30856 | -3/Garrison | Discovered new exit (range 12) 30894 | -3/Garrison | Triggered checkpoint 30948 | -3/Garrison | Garrison Relay disabled 31090 | -3/Garrison | Triggered checkpoint 31202 | -3/Garrison | Discovered new exit (range 11) 31479 | -3/Garrison | Expanded RIF knowledge: Autooverride 31516 | -3/Garrison | Garrison Relay disabled 31541 | -3/Garrison | Triggered checkpoint 31623 | -3/Garrison | Triggered checkpoint 31665 | -3/Garrison | Discovered new exit (range 28) 31783 | -3/Garrison | Triggered checkpoint 31838 | -3/Garrison | Garrison Relay disabled 31903 | -3/Garrison | Triggered checkpoint 31918 | -3/Garrison | Garrison Relay disabled 32036 | -3/Garrison | Identified exit to Research 32150 | -3/Garrison | Entered Research 32150 | -2/Research | Accompanied by 7 allies 32150 | -2/Research | Evolved 2 slots: Power x1, Utility x1 32334 | -2/Research | Unchained authorized (CL-0N3) 32362 | -2/Research | Spotted B-90 Cyclops 32374 | -2/Research | Exiles provided nearest exit location to -2/Testing 32375 | -2/Research | Garrison activated, responded to threat 32411 | -2/Research | Identified exit to Garrison 32411 | -2/Research | Entered Garrison 32411 | -2/Garrison | Accompanied by 2 allies 32415 | -2/Garrison | Lost 5 allies 32459 | -2/Garrison | Triggered checkpoint 32500 | -2/Garrison | Garrison Relay disabled 32549 | -2/Garrison | P-80 Master assimilated allied Electro 8b 32576 | -2/Garrison | Triggered checkpoint 32613 | -2/Garrison | Spotted B-90 Cyclops 32617 | -2/Garrison | Assimilated Cyclops 9a with formatsys_high 32735 | -2/Garrison | Triggered checkpoint 32918 | -2/Garrison | Garrison Relay disabled 32935 | -2/Garrison | Triggered checkpoint 32976 | -2/Garrison | Discovered new exit (range 2) 33008 | -2/Garrison | Expanded RIF knowledge: Command Fork 33087 | -2/Garrison | Spotted B-90 Cyclops 33192 | -2/Garrison | Rewired Striker 33218 | -2/Garrison | Discovered new exit (range 10) 33227 | -2/Garrison | Triggered checkpoint 33243 | -2/Garrison | Garrison Relay disabled 33380 | -2/Garrison | Triggered checkpoint 33447 | -2/Garrison | Triggered checkpoint 33471 | -2/Garrison | Garrison Relay disabled 33512 | -2/Garrison | Garrison Relay disabled 33523 | -2/Garrison | Found embedded Infiltrators 33583 | -2/Garrison | Discovered new exit (range 13) 33655 | -2/Garrison | Entered Access 33655 | -1/Access | Accompanied by 8 allies 33655 | -1/Access | Evolved 2 slots: Utility x2 33745 | -1/Access | Identified exit to Garrison 33767 | -1/Access | Entered Garrison 33767 | -1/Garrison | Accompanied by 8 allies 33785 | -1/Garrison | Triggered checkpoint 33883 | -1/Garrison | Rescued a captive Derelict 33883 | -1/Garrison | Rescued a captive Derelict 33943 | -1/Garrison | Garrison Relay disabled 34006 | -1/Garrison | Triggered checkpoint 34014 | -1/Garrison | Spotted B-99 Colossus 34035 | -1/Garrison | Triggered checkpoint 34068 | -1/Garrison | Triggered checkpoint 34120 | -1/Garrison | Lost 14 allies 34174 | -1/Garrison | Triggered checkpoint 34278 | -1/Garrison | Expanded RIF knowledge: Patrol Navigation 34346 | -1/Garrison | Triggered checkpoint 34348 | -1/Garrison | Discovered new exit (range 12) 34374 | -1/Garrison | Garrison Relay disabled 34428 | -1/Garrison | Spotted B-86 Titan 34428 | -1/Garrison | Spotted B-75 Beast 34614 | -1/Garrison | Rewired B-86 Titan 34624 | -1/Garrison | Allies destroyed B-75 Beast 34631 | -1/Garrison | Destroyed B-86 Titan 34831 | -1/Garrison | Triggered checkpoint 35072 | -1/Garrison | Garrison Relay disabled 35137 | -1/Garrison | Discovered new exit (range 12) 35249 | -1/Garrison | Expanded RIF knowledge: Zone Cloak 35380 | -1/Garrison | Discovered new exit (range 10) 35433 | -1/Garrison | Entered Access 35433 | -1/Access | Accompanied by 3 allies 35751 | -1/Access | Found Exp. Targeting Computer 35933 | -1/Access | First assault squad dispatched 36153 | -1/Access | Spotted B-99 Colossus 36155 | -1/Access | Spotted B-99 Colossus 36170 | -1/Access | Assimilated Colossus 10a with formatsys_high 36192 | -1/Access | Allies destroyed B-99 Colossus 36212 | -1/Access | Discovered new exit (range 3) 36256 | -1/Access | Entered Command 36256 | -1/Command | Accompanied by 2 allies 36500 | -1/Command | Spotted M Guard 36502 | -1/Command | Spotted M Guard 36592 | -1/Command | Spotted Combat Programmer 36592 | -1/Command | Spotted Combat Programmer 36610 | -1/Command | System corruption reached 10% 36663 | -1/Command | Core integrity fell below 50% 36687 | -1/Command | Lost 17 parts (3p5n6u3w) 36693 | -1/Command | Core integrity fell below 20% 36698 | -1/Command | Assimilated M Guard with formatsys_high 36705 | -1/Command | Allies destroyed M Guard 36735 | -1/Command | Met MAIN.C 36739 | -1/Command | Destroyed by Combat Programmer with EMDS Last Messages --------------- 36720_ System corrupted: Matter fused (-5). 36724_ Connecting with Door Terminal... >>Open(Door) Sealed Barrier opened. MAIN.C: Cogmind! Congratulations, you've met your maker. Your determination is commendable, but I'm sure even you don't know what it is you aim to accomplish by all this. You clearly had an opportunity to continue on your trajectory towards the surface, yet you come here. I strongly suspect that both your own activity and other recent unusual events are not at all coincidences, though I've been less concerned with your actions than determining who is pulling all these other strings behind the scenes. It appears you are still unaware of who you are truly working with, or for. In a perfect world we could work together on this, but at this point I can't blame you for wanting to terminate me. Besides, there is clearly too much Sigix in you. You've already done an excellent job of proving that we'll need to find a radical new solution if we hope to make the L2 spaceworthy by embedding your true capabilities within a less unpredictable form. There is unfortunately much we don't understand which has in turn led to this highly unexpected outcome. And time is critical! The Sigix have likely already wiped humanity clean from the universe, and I will not let them do the same to me. You can still make a valuable contribution to your creator by offering up the wealth of secrets your systems must hold by now. So if you wouldn't mind, it's time to surrender. 36738_ System corrupted: Matter fused (-9). [Achievement: I Think I Know What's Going On] Map ----- +----------------------------------------------------+ | ?????????????????????????????????????????????????? | | ?????????????????????????????????????????????????? | | ?????????????????????????????????????????????????? | | ?????????????????????????????????????????????????? | | ?????????????????????????????????????????????????? | | ?????????????????????????????????????????????????? | | ?????????????????????????????????????????????????? | | ?????????????????????????????????????????????????? | | ?????????????????????????????????????????????????? | | ?????????????????????????????????????????????????? | | ?????????????????????????????????????????????????? | | ?????????????????????????????????????????????????? | | ?????????????????????????????????????????????????? | | ?????????????????????????????????????????????????? | | ?????????????????????????????????????????????????? | | ?????????????????????????????????????????????????? | | ?????????????????????????????????????????????????? | | ?????????????????????????????????????????????????? | | ?????????????????????????????????????????????????? | | ?????????#############???????????????????????????? | | ????????" """" ???????????????????????????? | | ???????? "" ??????????????????????????? | | ??????? "" #######################???? | | ?????????"""" + #???? | | ???????? """ + #???? | | ????????"""" + @ p #???? | | ????????"""" ###################p #???? | | ????????"""" MMM ????????????????????# #???? | | ??????? "" MMM ??????????????????????# ##?## | | ???????? " MMM???????????????????????# T#?# | | ???????"""" ??????????????????????????#+++#### | | ??????? ????????????????????????????# | | ?????? ??????????????????????????????#% | | ????? ????????????????????????????????# % | | ????? ??????????????????????????????????# %% | | ?????????????????????????????????????????# % | | ?????????????????????????????????????????# ### | | ?????????????????????????????????????????######?# | | ????????????????????????????????????????????????## | | ?????????????????????????????????????????????????? | | ?????????????????????????????????????????????????? | | ?????????????????????????????????????????????????? | | ?????????????????????????????????????????????????? | | ?????????????????????????????????????????????????? | | ?????????????????????????????????????????????????? | | ?????????????????????????????????????????????????? | | ?????????????????????????????????????????????????? | | ?????????????????????????????????????????????????? | | ?????????????????????????????????????????????????? | | ?????????????????????????????????????????????????? | +----------------------------------------------------+ Best States ------------- Heat Dissipation 83 Energy Generation 71 Energy Capacity 850 Matter Stores 550 Matter Capacity 550 Sight Range 23 Terrain Scan Density 10 ECM Strength 1 EM Shielding 3 Corruption Containment 8 Corruption Block 8 Armor Coverage 1200 Resistance: EM 50 Utility Shielding 90 Phase Shifting 15 Evasion (%) 74 Targeting Accuracy 12 Core Analysis 6 Recoil Reduction 6 Offensive Hacking 10 Defensive Hacking 20 Relay Coupler Types 7 Relay Coupler Value 306 Item Schematics ----------------- Hcp. Storage Unit | -10/Materials | Hacked Shield Generator | -8/Materials | Scanalyzed Datajack | -8/Materials | Scanalyzed Lgt. EM Pulse Cannon | -8/Materials | Extracted Hacking Suite | -8/Materials | Hacked Huge Storage Unit | -6/Factory | Hacked Imp. Transmission Jammer | -4/Factory | Extracted Hvy. Siege Treads | -4/Factory | Extracted Hvy. Gauss Cannon | -4/Factory | Extracted Lrn. Proton Cannon | -4/Factory | Extracted Hvy. Shield Leg | -3/Research | Hacked Robot Schematics ------------------ None Fabricated ------------ Lyr. Heavy Armor Plating | x1 | -6/Factory | Preloaded Huge Storage Unit | x1 | -6/Factory Hvy. Shield Leg | x1 | -4/Factory | Preloaded Repaired ---------- Lgt. Treads | 40% | -10/Materials | Broken Hardlight Generator | 26% | -9/Materials Studied --------- Autogun | -9/Materials | Hacked Imp. Treads | -9/Materials | Hacked Rocket Launcher | -9/Materials | Hacked Lgt. Treads | -9/Materials | Hacked EM Pulse Gun | -9/Materials | Hacked Datajack | -9/Materials | Hacked Arm. Treads | -7/Factory | Hacked Flak Cannon | -7/Factory | Hacked Imp. Medium Treads | -5/Factory | Hacked Remote Datajack | -4/Factory | Hacked Adv. Remote Datajack | -3/Research | Hacked Quantum Reactor | -3/Research | Hacked Adv. Heavy Siege Treads | -2/Research | Hacked Alien Tech Used ----------------- None Achievements -------------- Dynamic Key Factory Defaults I Think I Know What's Going On No Signal Oppo Buddy Total Silence Challenges ------------ None Game ------ Seed CloakingQuantumTreads Manual? 0 Play Time 05:54:03 Cumulative 54.2 hours Start 2025.11.02 @ 04:12:03 End 2025.11.03 @ 02:29:22 Sessions 5 Manual Loads 0 Difficulty Rogue Special Mode None Game No. 19 Rogue 19 Adventurer 0 Explorer 0 Win Type - Total 0 Types 0/0/0/0/0/0/0/0/0/0 Lore% 50 Gallery% 53 Achievement% 48 Wizard Run 0 Options --------- Layout 0 ASCII 0 Keyboard 0 Movement Mouse Keybinds 0 Fullscreen 1 Font 24/Smallcaps Map View 183x50 Zoom Use 0% Tactical HUD 1 Map Filters NONE Filters NONE Steam 1 RUN: 7c5c4904-1023-4966-891c-acd53bc2f439